Cogmind - Beta 16.1 @@@ ROGUE MODE // 2026.01.23 @ 12:13:53 Player: C0-2MO Result: Assimilated 0b10! Performance ------------- Evolutions (9) 4500 Regions Visited (33) 6600 Robots Destroyed (279) 1395 Value Destroyed (14502) 14502 Prototype IDs (249) 4980 Alien Tech Used (8) 1600 Bonus (55846) 55846 TOTAL SCORE: 89423 Bonus ------- High Alert Combat Kills 2262 Follower Combat Kills 4484 Hunted by Unchained 2000 Destroyed Unchained 1000 Entered Garrisons 600 Used RIF Installer 2000 Network Hubs Disabled 800 Registered with UFD 300 Met Optimus in HQ 500 Met Zhirov 300 Built Enhanced Grunts 300 A7 Reached Mainframe 300 Met R17 at Cetus 500 Met R17 at Research 2000 Met Sigix 2000 Destroyed Superfortress 15000 Met Optimus at Protoforge 1000 Executed Drillbomb Mission 10000 Destroyed MAIN.C Guards 500 Met MAIN.C 5000 Used 0b10 Conduit 2000 Win 3000 Cogmind --------- Core Integrity 977/1600 Matter 300/300 Energy 468/480 System Corruption 0% Temperature Cool (18) Movement Hovering (40) Location 0b10 Command Parts ------- > --- POWER (3) -------- Zero-point Reactor Concept Zero-point Core Concept Zero-point Core > --- PROPULSION (6) --- Gravjet Array Concept Gyrokinetic System Concept Gyrokinetic System Concept Gyrokinetic System Concept Gyrokinetic System > --- UTILITY (13) ----- Concept Phasing Heat Sink Concept Antigrav Storage Unit Spectral Analyzer Experimental Sensor Array Experimental Signal Interpreter Long-range Terrain Scanner Experimental Terrain Scan Processor Concept Countertargeting System Experimental Core Analyzer Concept Cloak Mesh Graphene Brace Experimental EM Shield Experimental Hacking Suite > --- WEAPON (3) ------- Sigix Broadsword > --- INVENTORY (25) --- Zero-point Reactor Gravjet Array Concept NT7 Matterbank (750) Concept Weapon Articulator Experimental Transmission Jammer Experimental ECM Suite Concept Cloak Mesh Transdimensional Reconstructor Concept Plasma Driver Concept Miniperforator Peak State ------------ > --- POWER ------------ Concept Zero-point Core Concept Zero-point Core Concept Zero-point Core > --- PROPULSION ------- Gravjet Array Concept Gyrokinetic System Concept Gyrokinetic System Concept Gyrokinetic System Concept Gyrokinetic System > --- UTILITY ---------- Concept Phasing Heat Sink Concept Antigrav Storage Unit Advanced Quantum Shading Machine Spectral Analyzer Experimental Signal Interpreter Experimental Terrain Scan Processor Concept Countertargeting System Concept Weapon Articulator Experimental Kinecellerator Concept Cloak Mesh Graphene Brace Experimental EM Shield Experimental Hacking Suite > --- WEAPON ----------- Concept Helical Railcannon Concept Helical Railcannon Concept Helical Railcannon > --- INVENTORY -------- Concept Zero-point Core Concept Zero-point Core Gravjet Array Gravjet Array Concept NT7 Matterbank Concept NT7 Matterbank Experimental Sensor Array Long-range Terrain Scanner Experimental Core Analyzer Experimental Transmission Jammer Experimental ECM Suite Advanced Reaction Control System Concept Cloak Mesh Experimental Focal Shield Improved Hardlight Generator Transdimensional Reconstructor Concept Plasma Driver Concept Miniperforator Sigix Broadsword [Rating: 298] Favorites ----------- Power Concept Zero-point Core Engine Ion Engine Power Core Concept Zero-point Core Reactor Cold Fusion Reactor Propulsion Cooled Nuclear Pulse Thruster Treads Light Treads Wheel Compact Wheel Hover Unit Concept Gyrokinetic System Flight Unit Cooled Nuclear Pulse Thruster Utility Experimental Sensor Array Device Experimental Sensor Array Storage Medium Storage Unit Processor A0-MCA's Component Scanner Hackware Improved Hacking Suite Protection Improved Utility Shielding Weapon Advanced Datajack Energy Gun Small Laser Energy Cannon Concept Plasma Driver Ballistic Gun Improved Assault Rifle Ballistic Cannon Concept Helical Railcannon Launcher Long-range Missile Launcher Special Weapon Mining Laser Impact Weapon Hammer Slashing Weapon Power Sword Piercing Weapon Force Lance Special Melee Weapon Advanced Datajack Build | -11 -10 -10 -9 -9 -9 -9 -6 -6 -6 -6 -6 -6 -6 -5 -5 -5 -5 -5 -5 -4 -4 -4 -4 -4 -4 -4 -3 -3 -2 -2 -2 -1 -1 ------- Run | Yrd Mat Min Mat Sto Rec Scr Fac Was Fac Ext Cet Arc Hub Fac Was Fac Upp Upp Zhi Pro Fac Was Fac Gar Fac Gar Res Gar Res Qua Frg Acc Com Slots Evolved 18 | . . . 2 . . . 6 . . . . . . 2 . . . . . . 2 . . . . . 2 . 2 . . 2 . Power 2 | . . . . . . . . . . . . . . . . . . . . . 1 . . . . . . . 1 . . . . Propulsion 4 | . . . 2 . . . 2 . . . . . . . . . . . . . . . . . . . . . . . . . . Utility 11 | . . . . . . . 4 . . . . . . 2 . . . . . . 1 . . . . . 2 . 1 . . 1 . Weapon 1 | . . . . . . . . . . . . . . . . . . . . . . . . . . . . . . . . 1 . Parts Attached 259 | 8 7 12 6 16 2 5 23 4 . 4 5 1 3 8 1 10 2 3 3 1 8 3 13 1 23 5 11 1 5 9 40 2 14 Power 34 | 1 . 1 . 3 1 . 3 1 . . . . . 1 . . . 1 . . 2 . 2 1 5 1 1 1 1 1 4 . 3 Engine 6 | 1 . 1 . 3 1 . . . . . . . . . . . . . . . . . . . . . . . . . . . . Core 21 | . . . . . . . 2 . . . . . . 1 . . . 1 . . 1 . 2 . 4 1 . 1 1 1 4 . 2 Reactor 7 | . . . . . . . 1 1 . . . . . . . . . . . . 1 . . 1 1 . 1 . . . . . 1 Propulsion 57 | 2 2 4 3 5 . 2 4 . . 1 1 . 1 3 . 5 . . 3 1 1 1 2 . 2 . 1 . 1 2 10 . . Treads 3 | 1 1 . . . . . . . . . 1 . . . . . . . . . . . . . . . . . . . . . . Leg . | . . . . . . . . . . . . . . . . . . . . . . . . . . . . . . . . . . Wheel 2 | 1 1 . . . . . . . . . . . . . . . . . . . . . . . . . . . . . . . . Hover 9 | . . . . . . . . . . . . . . . . . . . . . . . . . . . . . . . 9 . . Flight 43 | . . 4 3 5 . 2 4 . . 1 . . 1 3 . 5 . . 3 1 1 1 2 . 2 . 1 . 1 2 1 . . Utility 108 | 2 3 3 1 1 1 1 7 1 . 1 1 1 2 4 1 4 1 2 . . 5 1 5 . 13 4 7 . 2 4 20 2 8 Device 48 | 1 1 1 1 . . . 3 . . . . 1 1 2 . 1 1 1 . . 2 1 3 . 5 . 3 . 1 2 10 1 6 Storage 10 | 1 1 . . . . 1 . . . 1 . . . . . 1 . . . . . . . . 1 . . . . 1 2 . 1 Processor 15 | . . 1 . 1 . . 1 . . . . . . 1 1 . . 1 . . . . . . 2 . . . 1 . 4 1 1 Hackware 22 | . . . . . 1 . 3 . . . . . . 1 . . . . . . 1 . 2 . 3 4 3 . . 1 3 . . Protection 13 | . 1 1 . . . . . 1 . . 1 . 1 . . 2 . . . . 2 . . . 2 . 1 . . . 1 . . Artifact . | . . . . . . . . . . . . . . . . . . . . . . . . . . . . . . . . . . Weapon 60 | 3 2 4 2 7 . 2 9 2 . 2 3 . . . . 1 1 . . . . 1 4 . 3 . 2 . 1 2 6 . 3 Energy Gun 11 | 3 . 1 . 2 . . 3 1 . . 1 . . . . . . . . . . . . . . . . . . . . . . Energy Cannon 4 | . . . . 1 . . . . . . . . . . . . . . . . . . . . . . . . 1 1 1 . . Ballistic Gun 10 | . . 2 2 4 . . . . . . 1 . . . . . . . . . . 1 . . . . . . . . . . . Ballistic Cannon 8 | . . . . . . . . . . . . . . . . . 1 . . . . . 1 . 1 . . . . . 2 . 3 Launcher 7 | . . 1 . . . . 3 . . 1 . . . . . . . . . . . . . . . . . . . . 2 . . Special Weapon 3 | . 1 . . . . . . . . 1 . . . . . . . . . . . . . . . . . . . . 1 . . Impact Weapon 1 | . 1 . . . . . . . . . . . . . . . . . . . . . . . . . . . . . . . . Slashing Weapon 9 | . . . . . . 2 2 1 . . . . . . . 1 . . . . . . 1 . . . 1 . . 1 . . . Piercing Weapon 1 | . . . . . . . . . . . . . . . . . . . . . . . 1 . . . . . . . . . . Special Melee Weapon 6 | . . . . . . . 1 . . . 1 . . . . . . . . . . . 1 . 2 . 1 . . . . . . Unidentified Prototypes 25 | . . 1 . 4 . . 5 2 . . 3 . . 1 . . . . 1 . 1 . . . . . . . . 4 2 . 1 Parts Lost 59 | . 1 9 . 3 1 . 5 . . . . . 4 2 . 3 . 1 . 1 5 . 2 . 4 . 1 . 1 . 4 . 12 Power 10 | . . 1 . 1 1 . . . . . . . 2 . . . . . . . 1 . . . . . . . . . 1 . 3 Propulsion 17 | . . 4 . 2 . . 3 . . . . . 1 1 . 1 . 1 . 1 2 . . . . . . . . . . . 1 Utility 20 | . . 1 . . . . 1 . . . . . . 1 . 2 . . . . 1 . 1 . 3 . 1 . 1 . 3 . 5 Weapon 12 | . 1 3 . . . . 1 . . . . . 1 . . . . . . . 1 . 1 . 1 . . . . . . . 3 Highest Loss Streak 12 | . 1 7 . 2 1 . 3 . . . . . 3 2 . 2 . 1 . 1 5 . 1 . 2 . 1 . 1 . 1 . 12 To Critical Strikes . | . . . . . . . . . . . . . . . . . . . . . . . . . . . . . . . . . . Average Backups 10 | 2 7 8 3 4 4 5 8 10 10 10 9 9 9 8 10 9 9 9 9 9 9 8 8 9 8 8 8 8 7 9 17 19 16 Power . | . . . 1 . . . 1 1 1 1 1 1 . . 1 1 1 1 1 1 . 1 1 1 1 1 1 1 . . 1 2 1 Propulsion 1 | 1 2 4 1 1 2 3 1 . . 1 1 1 . . 2 1 1 1 1 1 . . 1 1 1 1 1 1 1 1 2 2 1 Utility 5 | . 1 2 1 1 1 1 2 4 4 4 4 4 4 4 4 4 5 5 5 5 5 5 5 6 6 6 6 6 6 7 9 9 9 Weapon 1 | . 2 1 . 1 1 . 1 2 2 2 2 2 3 3 3 2 2 2 2 1 1 2 1 1 . . . . . . 3 4 3 Tool/Special . | . . . . . . . . . . . . . . . . . . . . . . . . . . . . . . . . . . Unused Backups 32 | . 2 2 . . . 1 2 1 1 . . . 1 . . 1 . . . . . . 3 2 . . . . . 1 12 . 3 Power 6 | . 1 . . . . . 1 1 . . . . . . . 1 . . . . . . . . . . . . . . 1 . 1 Propulsion 6 | . . 1 . . . . . . . . . . . . . . . . . . . . 1 . . . . . . . 4 . . Utility 14 | . . 1 . . . . 1 . . . . . 1 . . . . . . . . . 2 2 . . . . . . 6 . 1 Weapon 2 | . 1 . . . . 1 . . . . . . . . . . . . . . . . . . . . . . . . . . . Tool/Special 4 | . . . . . . . . . 1 . . . . . . . . . . . . . . . . . . . . 1 1 . 1 Average Slot Usage (%) 93 | . 99 90 99 99 94 99 96 100 100 100 98 99 98 92 93 96 91 99 90 94 93 83 94 100 98 99 96 100 99 92 85 88 85 Engine 1 | . 14 10 11 10 5 11 . . . . . . . . . . . . . . . 4 . . . . . . . . . . . Core 6 | . . . . . . . 2 . . . . . . 4 5 5 5 5 5 5 6 5 9 10 10 10 8 7 12 11 11 12 9 Treads 1 | . 14 9 . . . . . . . . . . . . . . . . . . . . . . . . . . . . . . . Wheel 1 | . 13 9 . . . . . . . . . . . . . . . . . . . . . . . . . . . . . . . Hover 2 | . . . . . . . . . . . . . . . . . . . . . . . . . . . . . . . 9 20 19 Flight 24 | . . 8 43 43 44 44 39 40 40 40 39 40 40 34 35 34 35 35 31 34 30 22 30 31 30 31 27 28 26 23 10 . . Device 12 | . 13 7 11 8 . . 12 8 6 6 6 6 9 10 5 9 11 11 11 11 10 10 10 10 4 7 12 9 12 10 21 28 26 Storage 5 | . 14 9 . . . 7 6 6 6 6 6 6 6 5 5 5 5 5 5 5 5 5 5 5 5 5 4 4 4 4 4 4 4 Processor 10 | . . . 11 13 12 3 5 6 6 6 6 6 6 5 16 12 11 15 17 17 12 10 10 10 10 10 9 9 12 13 13 12 13 Hackware 8 | . . . . . 9 11 11 13 13 13 13 13 13 11 11 7 5 5 5 5 9 10 10 10 15 14 12 14 8 12 6 8 5 Protection 5 | . . 6 . . . . . 4 6 6 6 5 2 10 5 8 5 5 5 5 7 8 8 10 10 7 10 14 12 10 2 . . Energy Gun 1 | . 21 10 . . . . . . . . . . . . . . . . . . . . . . . . . . . . . . . Ballistic Gun 1 | . . 11 11 17 21 8 . . . . . . . . . . 2 5 . . . . 1 . . . . . . . . . . Slashing Weapon 3 | . . . . . . 13 10 5 6 5 6 6 6 5 5 7 5 5 5 4 4 4 3 . . . 1 4 3 3 3 4 3 Special Melee Weapon 1 | . . . . . . . 1 6 6 5 4 5 4 . . . . . . . . . 1 5 4 5 4 4 4 1 . . . Peak Build Rating 298 | 7 8 16 13 26 28 28 69 74 71 71 83 72 71 75 80 85 88 91 92 96 113 105 123 118 128 136 151 151 169 185 284 293 298 Average Rating 129 | 5 7 7 12 20 25 26 60 72 71 70 70 70 68 66 79 79 81 89 83 90 104 92 112 116 120 128 133 148 163 171 239 282 267 On Entrance 89 | . 7 8 10 13 25 26 28 69 71 71 71 71 71 53 72 80 77 84 86 92 89 79 99 116 116 122 125 151 147 168 185 272 282 Avg Prop Armor Cover (%) 5 | 16 13 11 . . 4 . 2 . . . . 17 . 1 3 4 3 1 9 4 . . . . . . . . . . . . . Naked Turns . | . . . . . . . . . . . . . . . . . . . . . . . . . . . . . . . . . . Heaviest Build 117 | 15 29 33 9 15 11 19 32 30 29 29 29 30 29 25 22 37 33 34 23 31 41 27 39 40 38 36 37 35 39 44 85 84 117 Greatest Support 121 | 16 20 16 20 20 20 22 31 31 31 31 31 31 32 34 34 41 39 34 39 38 41 32 40 40 40 51 39 51 51 43 121 94 119 Greatest Overweight (x) 9 | . 1 2 . . . . 1 . . . 1 9 . . . . . . . . . 1 . . . . . . . 1 1 . . Average Overweight (x) . | . . . . . . . . . . . . 1 . . . . . . . . . . . . . . . . . . . . . Largest Inventory Capacity 25 | 8 15 15 5 5 5 10 10 10 10 15 10 10 10 10 10 15 10 10 10 10 10 10 10 10 10 10 10 10 10 10 25 25 25 Average Capacity 13 | 7 9 12 5 5 5 8 10 10 10 10 10 10 10 10 10 10 10 10 10 10 10 10 10 10 10 10 10 10 10 10 22 25 25 Most Carried 25 | 5 8 15 5 5 5 8 10 10 10 10 10 10 10 10 10 12 10 10 10 10 10 9 10 10 10 10 10 10 10 10 25 22 24 Average Carried 11 | 2 7 8 3 4 4 6 8 9 9 10 9 9 9 8 10 9 9 9 9 9 9 8 9 9 9 9 9 9 8 9 20 21 18 Final Capacity 25 | 8 15 5 5 5 5 10 10 10 10 10 10 10 10 10 10 10 10 10 10 10 10 10 10 10 10 10 10 10 10 10 25 25 25 Final Carried 22 | 5 8 5 5 5 4 8 10 10 10 10 9 9 10 10 10 10 9 10 10 10 8 8 10 10 9 10 10 9 10 9 22 22 11 Class Distribution -------------------- 33% | Hacker-Sprinter 14% | Hacker-Ninja 10% | Mutant 8% | Hacker-Scout 5% | Commander-Sprinter 5% | Sprinter 3% | Scientist-Scout Dominant Class ---------------- Mutant | -10/Materials Mutant | -10/Mines Scavenger-Sprinter | -9/Materials Sprinter | -9/Storage Sprinter | -9/Recycling Sprinter | -9/Scraptown Hacker-Scout | -6/Factory Hacker-Sprinter | -6/Waste Hacker-Sprinter | -6/Factory Commander-Sprinter | -6/Extension Commander-Sprinter | -6/Cetus Commander-Mutant | -6/Archives Commander-Scout | -6/Hub_04(d) Scavenger-Scout | -5/Factory Hacker-Sprinter | -5/Waste Scientist-Scout | -5/Factory Scientist-Scout | -5/Upper Caves Scientist-Scout | -5/Upper Caves Scout | -5/Zhirov Scout | -4/Proximity Caves Hacker-Scout | -4/Factory Hacker-Scout | -4/Waste Hacker-Sprinter | -4/Factory Hacker-Sprinter | -4/Garrison Hacker-Sprinter | -4/Factory Hacker-Sprinter | -4/Garrison Hacker-Ninja | -3/Research Hacker-Sprinter | -3/Garrison Hacker-Sprinter | -2/Research Hacker-Sprinter | -2/Quarantine Hacker-Ninja | -2/Protoforge Hacker-Ninja | -1/Access Hacker-Ninja | -1/Command Resources | -11 -10 -10 -9 -9 -9 -9 -6 -6 -6 -6 -6 -6 -6 -5 -5 -5 -5 -5 -5 -4 -4 -4 -4 -4 -4 -4 -3 -3 -2 -2 -2 -1 -1 ----------- Run | Yrd Mat Min Mat Sto Rec Scr Fac Was Fac Ext Cet Arc Hub Fac Was Fac Upp Upp Zhi Pro Fac Was Fac Gar Fac Gar Res Gar Res Qua Frg Acc Com Matter Collected 13259 | 270 165 327 11 632 245 70 645 76 10 83 129 50 45 113 37 60 222 40 50 16 309 221 302 40 729 121 165 20 1126 497 5379 190 864 Remotely . | . . . . . . . . . . . . . . . . . . . . . . . . . . . . . . . . . . Salvage Created 14235 | 44 432 700 11 879 787 . 918 . 106 254 . 37 49 38 . 276 76 . 68 61 431 . 702 119 785 53 648 95 1232 83 4501 468 382 Parts 625 | 6 27 26 1 50 31 . 53 . 2 10 . 4 6 1 . 12 4 . 1 5 21 . 23 2 32 3 27 3 44 5 192 17 17 Haulers Intercepted 24 | . 1 . . 6 . . 2 . 1 . . . . . . 1 . . . . 1 . 2 . 1 . 5 . 4 . . . . Recyclers Shooed 8 | . 1 2 . 1 3 . 1 . . . . . . . . . . . . . . . . . . . . . . . . . . Parts Field Recycled . | . . . . . . . . . . . . . . . . . . . . . . . . . . . . . . . . . . Retrieved Matter . | . . . . . . . . . . . . . . . . . . . . . . . . . . . . . . . . . . Parts Self-Destructed 4 | . . . . . . . . . . . . . . . . . 3 . . 1 . . . . . . . . . . . . . Prevented . | . . . . . . . . . . . . . . . . . . . . . . . . . . . . . . . . . . Parts Restored 9 | . . . . . . . . . . . . . . . . . . . . . . . . . . . . . . . 9 . . Faulty 9 | . . . . . . . . . . . . . . . . . . . . . . . . . . . . . . . 9 . . Kills | -11 -10 -10 -9 -9 -9 -9 -6 -6 -6 -6 -6 -6 -6 -5 -5 -5 -5 -5 -5 -4 -4 -4 -4 -4 -4 -4 -3 -3 -2 -2 -2 -1 -1 ------- Run | Yrd Mat Min Mat Sto Rec Scr Fac Was Fac Ext Cet Arc Hub Fac Was Fac Upp Upp Zhi Pro Fac Was Fac Gar Fac Gar Res Gar Res Qua Frg Acc Com Combat Hostiles Destroyed 153 | . 7 21 . 9 3 . 14 . . . . . . . . . 1 . . 5 11 . 1 . 6 1 . 1 . 1 64 3 5 Melee 38 | . . . . . . . 1 . . . . . . . . . . . . 1 . . 1 . 2 1 . 1 . . 30 . 1 Guns 24 | . 3 10 . 8 3 . . . . . . . . . . . . . . . . . . . . . . . . . . . . Cannons 32 | . . . . . . . . . . . . . . . . . 1 . . . . . . . 4 . . . . 1 19 3 4 AOE 56 | . 4 11 . . . . 12 . . . . . . . . . . . . 4 11 . . . . . . . . . 14 . . Classes Destroyed 22 | 1 7 2 1 2 . . 1 . . . . . . . . . 1 . . 1 . . . . . . . . . . 6 . . Worker 9 | . 2 1 . 1 . . . . . . . . . . . . . . . . . . . . 1 . . . 2 . . 1 1 Builder 12 | . . . . 1 . . 3 . . . . . 1 . . 1 . . . . . . 1 . . . 2 . 2 . 1 . . Tunneler 9 | 2 . 1 . . . . 1 . . . . . . . . . . . . . . . 1 . . . . . 4 . . . . Hauler 24 | . 1 . . 6 . . 2 . 1 . . . . . . 1 . . . . 1 . 2 . 1 . 5 . 4 . . . . Recycler 29 | . 2 4 . 1 8 . 2 . . 2 . . . . . 1 . . . . 1 . 2 . 2 . . . 4 . . . . Minesweeper 1 | . . . . . . . . . . . . . . . . . 1 . . . . . . . . . . . . . . . . Mechanic 9 | . 1 . . . . . . . . . . . . . . 1 . . . . . . 1 . . . . . . . 6 . . Operator 8 | . . . 1 1 . . . . . . . 1 . 1 . . . . . . . . . . 1 . . . . 1 2 . . Drone 13 | . . . . . . . . . . . . . . . . . . . . 1 2 . 1 . 1 . . . . . 8 . . Watcher 36 | . 1 . . 2 . . . . . . . . 1 1 . . . . . . 2 . 3 . 6 . 3 . 5 1 3 4 4 Swarmer 32 | . 3 4 . . . . 8 . . . . . . . . . . . . 4 9 . . . 4 . . . . . . . . Grunt 37 | . 4 7 . 6 . . 5 . . . . . . . . . 1 . . . . . . . . . . . . . 14 . . Protector 1 | . . . . . . . . . . . . . . . . . . . . . . . . . . . . . . . 1 . . Sentry 25 | . . . . 3 3 . . . . . . . . . . . . . . . . . . . . . . 1 . . 14 3 1 Demolisher 1 | . . 1 . . . . . . . . . . . . . . . . . . . . . . . . . . . . . . . Hunter 2 | . . . . . . . . . . . . . . . . . . . . . . . . . . . . . . . 2 . . Programmer 5 | . . . . . . . 1 . . . . . . . . . . . . . . . . . . 1 . . . . 3 . . Quarantine Guard 1 | . . . . . . . . . . . . . . . . . . . . . . . . . . . . . . 1 . . . M Guard 2 | . . . . . . . . . . . . . . . . . . . . . . . . . . . . . . . . . 2 Hotshot 5 | . . . . . . . . . . . . . . . . . . . . . . . . . . . . . . . 5 . . Decapitator 9 | . . . . . . . . . . . . . . . . . . . . . . . . . . . . . . . 9 . . Immortal 4 | . . . . . . . . . . . . . . . . . . . . . . . . . . . . . . . 4 . . Combat Programmer 2 | . . . . . . . . . . . . . . . . . . . . . . . . . . . . . . . . . 2 Alpha 7 1 | . . . . . . . . . . . . . . . . . . . . . . . . . . . . . . . 1 . . V-Series 3 | . . . . . . . . . . . . . . . . . . . . . . . . . . . . . . . 3 . . Assembled 9 | . . 9 . . . . . . . . . . . . . . . . . . . . . . . . . . . . . . . Best Kill Streak 7 | 2 7 7 1 4 6 . 5 . 1 1 . 1 1 2 . 2 2 . . 4 7 . 2 . 5 1 2 1 2 1 6 2 2 Combat Bots Only 7 | . 3 7 . 2 1 . 5 . . . . . . . . . 1 . . 4 5 . 1 . 2 1 . 1 . 1 6 2 2 Max Kills in Single Turn 4 | 1 3 4 1 1 1 . 4 . 1 1 . 1 1 1 . 1 1 . . 3 3 . 1 . 2 1 1 1 1 1 3 1 1 Gunslinging . | . . . . . . . . . . . . . . . . . . . . . . . . . . . . . . . . . . Exploded 4 | . 3 4 . . . . 4 . . . . . . . . . . . . 3 3 . . . . . . . . . 3 . . Melee 1 | . . . . . . . 1 . . . . . . . . . . . . 1 . . 1 . 1 1 . 1 . . 1 . 1 Uniques/NPCs Destroyed 1 | . . . . . . . . . . . . . . . . . . . . . . . . . 1 . . . . . . . . BL-1NK (-4/Factory) Combat | -11 -10 -10 -9 -9 -9 -9 -6 -6 -6 -6 -6 -6 -6 -5 -5 -5 -5 -5 -5 -4 -4 -4 -4 -4 -4 -4 -3 -3 -2 -2 -2 -1 -1 -------- Run | Yrd Mat Min Mat Sto Rec Scr Fac Was Fac Ext Cet Arc Hub Fac Was Fac Upp Upp Zhi Pro Fac Was Fac Gar Fac Gar Res Gar Res Qua Frg Acc Com Hostile Shots Fired 983 | . 20 89 10 49 14 . 84 . . 35 6 . 18 19 . 62 1 4 . 8 66 . 17 . 56 22 10 35 21 30 197 14 96 Missed 414 | . 8 18 7 22 5 . 43 . . 18 2 . 6 9 . 32 1 3 . 3 33 . 9 . 18 13 4 13 8 15 88 10 26 Hits 569 | . 12 71 3 27 9 . 41 . . 17 4 . 12 10 . 30 . 1 . 5 33 . 8 . 38 9 6 22 13 15 109 4 70 Melee 9 | . . 4 . . . . . . . . . . . . . . . . . . . . . . . . . . 3 . 2 . . Projectile 560 | . 12 67 3 27 9 . 41 . . 17 4 . 12 10 . 30 . 1 . 5 33 . 8 . 38 9 6 22 10 15 107 4 70 AOE 43 | . . . . . . . . . . . . . . . . . . . . . 1 . . . 1 . . . 1 . 6 1 33 Critical Strikes 33 | . . 2 . 1 . . . . . 1 1 . 1 1 . 1 . . . . 4 . . . . 3 . 1 2 1 6 . 8 Actively Blocked 21 | . . . . . . . . . . . . . . 1 . . . . . . 4 . . . . . . . 1 1 6 . 8 Part Disruptions 2 | . . . . . . . . . . . . . . . . . . . . . . . . . . . . . . . . . 2 Damage Taken 15233 | . 212 921 40 358 135 . 567 . . 246 77 26 363 291 . 670 . 25 . 124 678 . 260 . 902 185 117 458 300 610 3629 208 3831 Core 2602 | . 69 139 10 41 . . 135 . . 76 37 . 74 124 . 172 . . . . 199 . 100 . 123 19 17 44 . 89 511 18 605 Absorbed by Shields 170 | . . . . . . . . . . 3 23 . . . . . . . . . . . . . . 18 . 21 . . 15 . 90 Redirected to Shielding 1214 | . . . . . . . . . . 36 7 17 13 62 . 140 . . . 9 174 . 37 . 144 9 14 143 117 44 248 . . Ignored by Resistances 382 | . . . . . . . . . . . . . . . . . . . . . . . . . . . . . . . . . 382 Regen/Repaired (Parts) 4827 | . 56 . . 11 . 50 79 18 . 78 10 24 . 89 . . . . . . . 231 89 . 323 67 133 27 528 490 1996 164 364 Core Remaining (%) 66 | 100 . 16 . . . 87 . . . . . . 62 . . . . . . 70 . . . . . 53 . 95 . . 51 . 61 Volleys Fired 382 | 6 21 61 . 55 35 . 18 . . 2 2 . . . . . 5 . . 10 10 . 1 . 23 . . . 5 1 82 9 36 Largest 3 | 2 2 2 . 2 2 . 1 . . 1 1 . . . . . 1 . . 1 1 . 1 . 1 . . . 1 1 1 1 3 Hottest 300 | 80 100 85 . 46 46 . 39 . . 43 240 . . . . . 51 . . 51 43 . 51 . 56 . . . 120 300 140 140 210 Shots Fired 548 | 10 38 96 . 109 70 . 18 . . 2 2 . . . . . 5 . . 10 10 . 1 . 23 . . . 5 1 82 9 57 Gun 313 | 10 34 89 . 109 70 . . . . . 1 . . . . . . . . . . . . . . . . . . . . . . Cannon 176 | . . . . . . . . . . . . . . . . . 5 . . 3 . . 1 . 23 . . . 5 1 72 9 57 Launcher 52 | . . 7 . . . . 18 . . 1 . . . . . . . . . 7 10 . . . . . . . . . 9 . . Special 7 | . 4 . . . . . . . . 1 1 . . . . . . . . . . . . . . . . . . . 1 . . Kinetic 376 | . . 47 . 109 70 . . . . . . . . . . . 5 . . 3 . . 1 . 23 . . . . . 67 5 46 Thermal 73 | 2 7 37 . . . . . . . . 1 . . . . . . . . . . . . . . . . . 5 1 5 4 11 Explosive 42 | . . 7 . . . . 8 . . 1 . . . . . . . . . 7 10 . . . . . . . . . 9 . . Electromagnetic 54 | 8 31 5 . . . . 10 . . . . . . . . . . . . . . . . . . . . . . . . . . Robot Hit Streak 57 | 5 6 12 . 8 7 . 10 . . 12 13 . . . . . 14 . . 3 4 . . . 5 . . . . 3 35 20 57 Robot Miss Streak 4 | 1 3 3 . 3 1 . 2 . . . . . . . . . 1 . . . 1 . . . 4 . . . . . 4 2 1 Penetration Max 2 | . . . . . . . . . . . . . . . . . . . . . . . . . 2 . . . . . 1 . 1 Secondary Targets 2 | . . 1 . 1 . . . . . . . . . . . . . . . . . . . . . . . . . . . . . Max Gunslinging Chain 1 | . . 1 . 1 . . . . . . . . . . . . . . . . . . . . . . . . . . . . . Shots Hit Robots 775 | 8 22 59 1 76 48 . 30 . 1 39 1 5 2 4 . 9 3 . 2 3 11 . 27 17 41 10 16 3 54 12 203 9 59 Core Hits 412 | 2 18 56 . 28 18 . 29 . 1 3 . 1 1 1 . 3 1 . 1 5 17 . 9 4 16 1 7 2 20 4 122 6 36 Critical Kills 29 | . . . . . 1 . . . . . . . . . . . 1 . . . . . . . 4 . . . . 1 16 5 1 Critical Parts Destroyed 21 | . . . . 2 . . . . . . . . . . . . . . . . . . . . 2 . . . . . 9 . 8 Critical Strikes 101 | . . . . 2 1 . . . . 1 . . . . . 1 1 . . . . . 2 1 9 1 3 1 4 2 46 5 21 Destroy 60 | . . . . . 1 . . . . . . . . . . . 1 . . . . . . . 6 . . . . 1 27 5 19 Blast 6 | . . . . . . . . . . . . . . . . . . . . . . . . . . . . . . . 6 . . Smash 2 | . . . . 2 . . . . . . . . . . . . . . . . . . . . . . . . . . . . . Sever 24 | . . . . . . . . . . 1 . . . . . 1 . . . . . . 1 . . . . 1 4 1 13 . 2 Impale 9 | . . . . . . . . . . . . . . . . . . . . . . . 1 1 3 1 3 . . . . . . Melee Attacks 1053 | . 13 3 9 28 . . 75 . 1 64 13 19 19 20 . 43 4 1 2 27 31 . 71 43 115 22 42 4 112 58 187 15 12 Impact 53 | . 13 3 9 28 . . . . . . . . . . . . . . . . . . . . . . . . . . . . . Slashing 739 | . . . . . . . 74 . 1 36 13 15 19 20 . 43 4 1 2 27 31 . 66 . . . 6 4 111 57 182 15 12 Piercing 202 | . . . . . . . . . . . . . . . . . . . . . . . 5 34 111 16 36 . . . . . . Sneak Attacks 159 | . 1 1 . 1 . . 10 . . 29 . 5 1 1 . 6 1 . . 1 3 . 10 9 10 4 8 . 23 1 32 1 1 Combat Hostiles 11 | . . . . . . . . . . . . . . . . . . . . 1 . . 1 . . . . . . . 9 . . Follow-up Attacks 6 | . . . . . . . 3 . . . . . . . . 3 . . . . . . . . . . . . . . . . . Damage Inflicted 48074 | 99 649 1496 34 1267 749 . 2708 . 54 566 . 90 161 230 . 678 169 . 229 502 1668 . 2143 922 2232 280 1356 117 3544 1124 20717 368 3922 Guns 2811 | 99 328 520 . 1115 749 . . . . . . . . . . . . . . . . . . . . . . . . . . . . Cannons 8231 | . . . . . . . . . . . . . . . . . 37 . . . . . . . 199 . . . . 200 4765 16 3014 Explosions 6353 | . 283 926 . . . . 1603 . . 55 . . . . . . . . . 385 1089 . . . . . . . . . 2012 . . Melee 30679 | . 38 50 34 152 . . 1105 . 54 511 . 90 161 230 . 678 132 . 229 117 579 . 2143 922 2033 280 1356 117 3544 924 13940 352 908 Ramming . | . . . . . . . . . . . . . . . . . . . . . . . . . . . . . . . . . . Kinetic 9643 | . . 220 . 1115 749 . . . . . . . . . . . 37 . . . . . . . 199 . . . . . 4602 16 2705 Thermal 1271 | 22 303 274 . . . . . . . . . . . . . . . . . . . . . . . . . . . 200 163 . 309 Explosive 5649 | . . 926 . . . . 1182 . . 55 . . . . . . . . . 385 1089 . . . . . . . . . 2012 . . Electromagnetic 832 | 77 308 26 . . . . 421 . . . . . . . . . . . . . . . . . . . . . . . . . . Impact 274 | . 38 50 34 152 . . . . . . . . . . . . . . . . . . . . . . . . . . . . . Slashing 25573 | . . . . . . . 1105 . 54 511 . 90 161 230 . 678 132 . 229 117 579 . 1902 . . . . 117 3544 924 13940 352 908 Piercing 4832 | . . . . . . . . . . . . . . . . . . . . . . . 241 922 2033 280 1356 . . . . . . Highest Corruption 8 | . . 2 . . . . 3 3 3 3 3 3 . 3 3 8 8 8 8 8 2 2 2 . 6 6 . . . . . . . Average Corruption 4 | . . 2 . . . . 2 3 3 3 3 1 . 2 3 6 8 8 8 8 1 2 1 . 3 6 . . . . . . . Corruption Purged 6 | . . . . . . . . . . . . 3 . . . . . . . . . . 2 . 1 . . . . . . . . Corruption Blocked 10 | . . . . . . . . . . . . . . . . . . . . . . . . . . . . . . . 10 . . Effects 102 | . . 5 . . . . 10 2 2 16 6 . . . 2 20 4 7 . 10 1 2 1 . 5 9 . . . . . . . Message Errors 34 | . . 2 . . . . 4 1 1 5 5 . . . 1 2 2 2 . 2 . 1 1 . 1 4 . . . . . . . Matter Fused 22 | . . . . . . . 4 1 . 3 . . . . . 6 1 . . 2 . . . . 2 3 . . . . . . . Heat Flow Errors 11 | . . . . . . . 1 . . 1 . . . . . 5 . 1 . 2 . . . . 1 . . . . . . . . Energy Discharges 12 | . . . . . . . 1 . . 4 . . . . . 2 . 2 . 1 1 1 . . . . . . . . . . . Parts Rejected 1 | . . . . . . . . . . . . . . . . . . 1 . . . . . . . . . . . . . . . Data Loss (minor) 9 | . . 1 . . . . . . . 1 . . . . . 2 1 . . 2 . . . . 1 1 . . . . . . . Data Loss (major) 8 | . . . . . . . . . 1 1 1 . . . 1 2 . . . 1 . . . . . 1 . . . . . . . Misfires 1 | . . 1 . . . . . . . . . . . . . . . . . . . . . . . . . . . . . . . Alerts 3 | . . . . . . . . . . 1 . . . . . 1 . 1 . . . . . . . . . . . . . . . Weapon Failures 1 | . . 1 . . . . . . . . . . . . . . . . . . . . . . . . . . . . . . . Overload Shots 1 | . . . . . . . . . . . 1 . . . . . . . . . . . . . . . . . . . . . . Overflow Damage 6358 | . 3 38 4 49 . . 255 . . 11 . . 26 64 . 230 112 . 107 5 113 . 391 212 437 51 361 . 524 96 2950 132 187 Projectiles 391 | . . . . . . . . . . . . . . . . . . . . . . . . . . . . . . . 372 . 19 Explosions 188 | . 3 18 . . . . 60 . . . . . . . . . . . . 5 32 . . . . . . . . . 70 . . Melee 5779 | . . 20 4 49 . . 195 . . 11 . . 26 64 . 230 112 . 107 . 81 . 391 212 437 51 361 . 524 96 2508 132 168 Knockbacks 38 | . . . . . . . . . . . . . . . . . . . . . . . . . 1 . . . . . 28 . 9 Impact . | . . . . . . . . . . . . . . . . . . . . . . . . . . . . . . . . . . Kinetic 38 | . . . . . . . . . . . . . . . . . . . . . . . . . 1 . . . . . 28 . 9 Secondary . | . . . . . . . . . . . . . . . . . . . . . . . . . . . . . . . . . . Self-Inflicted Damage 551 | . 95 20 . . . . 13 . . . . . . . . . . . . 46 71 . . . . . . . . . 306 . . Shots 12 | . 3 1 . . . . 1 . . . . . . . . . . . . 1 2 . . . . . . . . . 4 . . Rammed . | . . . . . . . . . . . . . . . . . . . . . . . . . . . . . . . . . . Targets Rammed 1 | . 1 . . . . . . . . . . . . . . . . . . . . . . . . . . . . . . . . Kicked . | . . . . . . . . . . . . . . . . . . . . . . . . . . . . . . . . . . Crushed 1 | . 1 . . . . . . . . . . . . . . . . . . . . . . . . . . . . . . . . Highest Temperature 532 | 72 131 261 . 28 10 . 532 12 . 206 180 . 59 8 74 256 6 218 . 268 . . . . 190 164 . 278 415 306 . 76 38 Average Temperature 71 | 40 44 66 . 9 4 . 101 7 . 116 98 . 24 3 35 78 3 106 . 111 . . . . 88 121 . 159 70 82 . 36 28 Received Heat Transfer 1700 | . 42 203 6 174 45 . 183 . . 81 . . 63 36 . 243 . . . . 9 . 39 . 66 . . 18 18 . 429 18 27 Effects 8 | . . . . . . . 4 . . . . . . . . . . . . . . . . . . . . . 3 1 . . . Shutdowns 5 | . . . . . . . 2 . . . . . . . . . . . . . . . . . . . . . 3 . . . . Energy Bleed 2 | . . . . . . . 1 . . . . . . . . . . . . . . . . . . . . . . 1 . . . Matter Decay 1 | . . . . . . . 1 . . . . . . . . . . . . . . . . . . . . . . . . . . Siege Activations . | . . . . . . . . . . . . . . . . . . . . . . . . . . . . . . . . . . Martial Activations . | . . . . . . . . . . . . . . . . . . . . . . . . . . . . . . . . . . Shielding Activations . | . . . . . . . . . . . . . . . . . . . . . . . . . . . . . . . . . . Robots Disrupted 1 | . . . . . . . 1 . . . . . . . . . . . . . . . . . . . . . . . . . . Combat Hostiles 1 | . . . . . . . 1 . . . . . . . . . . . . . . . . . . . . . . . . . . Robots Corrupted 4 | . . 1 1 1 . . 1 . . . . . . . . . . . . . . . . . . . . . . . . . . Combat Hostiles 2 | . . . . 1 . . 1 . . . . . . . . . . . . . . . . . . . . . . . . . . Parts Fried 11 | 1 1 3 . 5 . . 1 . . . . . . . . . . . . . . . . . . . . . . . . . . Impact Corruptions 4 | . . 1 1 2 . . . . . . . . . . . . . . . . . . . . . . . . . . . . . Robots Melted . | . . . . . . . . . . . . . . . . . . . . . . . . . . . . . . . . . . Combat Hostiles . | . . . . . . . . . . . . . . . . . . . . . . . . . . . . . . . . . . Parts Melted 1 | . . 1 . . . . . . . . . . . . . . . . . . . . . . . . . . . . . . . Heat Transferred 1424 | 50 400 647 . . . . . . . . . . . . . . . . . . . . . . . . . . . . 100 . 227 Parts Sabotaged . | . . . . . . . . . . . . . . . . . . . . . . . . . . . . . . . . . . Parts Stolen . | . . . . . . . . . . . . . . . . . . . . . . . . . . . . . . . . . . Parts Stripped . | . . . . . . . . . . . . . . . . . . . . . . . . . . . . . . . . . . Power Chain Reactions 3 | . 3 . . . . . . . . . . . . . . . . . . . . . . . . . . . . . . . . Alert | -11 -10 -10 -9 -9 -9 -9 -6 -6 -6 -6 -6 -6 -6 -5 -5 -5 -5 -5 -5 -4 -4 -4 -4 -4 -4 -4 -3 -3 -2 -2 -2 -1 -1 ------- Run | Yrd Mat Min Mat Sto Rec Scr Fac Was Fac Ext Cet Arc Hub Fac Was Fac Upp Upp Zhi Pro Fac Was Fac Gar Fac Gar Res Gar Res Qua Frg Acc Com Maximum Alert Level 4 | . . . . 2 1 . 2 1 . 2 2 1 2 1 . . . . . . 2 . 2 2 2 3 2 1 2 2 4 3 2 Low Security (%) 37 | 100 100 100 100 48 . . 60 66 100 31 . 35 32 1 100 100 . . . . 17 100 85 10 34 . 29 20 42 10 6 . . Level 1 28 | . . . . 36 99 . 11 33 . 43 42 64 35 98 . . . . . . 41 . 11 40 41 28 33 79 50 74 18 . . Level 2 20 | . . . . 14 . . 28 . . 24 57 . 31 . . . . . . . 41 . 2 49 24 7 37 . 7 14 22 83 100 Level 3 7 | . . . . . . . . . . . . . . . . . . . . . . . . . . 64 . . . . 27 16 . Level 4 6 | . . . . . . . . . . . . . . . . . . . . . . . . . . . . . . . 25 . . Level 5 . | . . . . . . . . . . . . . . . . . . . . . . . . . . . . . . . . . . High Security . | . . . . . . . . . . . . . . . . . . . . . . . . . . . . . . . . . . Max Security . | . . . . . . . . . . . . . . . . . . . . . . . . . . . . . . . . . . Peak Influence 1289 | 10 145 113 83 505 388 . 649 225 186 593 528 303 539 244 83 157 . . . . 552 175 454 549 604 890 672 387 416 442 1289 797 688 Initial 652 | . . . . 32 193 . . 225 101 66 298 180 54 205 83 37 . . . . 300 175 59 65 287 235 500 152 203 174 210 652 499 Average 370 | . 58 23 28 230 346 . 245 185 164 277 434 223 286 222 68 36 . . . . 364 129 97 378 282 612 348 261 241 306 762 660 557 Influence Increases 16824 | 10 337 382 147 816 308 . 1081 . 95 1387 373 187 1006 193 . 518 25 60 . 95 1092 . 1241 484 1275 695 535 250 836 715 1997 335 349 Destroy 0b10 Robot/C 4450 | . 140 260 . 180 60 . 280 . 40 600 160 80 320 . . . 20 . . 80 220 . 220 . 240 260 80 40 60 165 825 45 75 Destroy 0b10 Robot/NC 794 | 10 35 35 5 60 40 . 40 . 5 20 10 5 30 10 . 20 5 . . 5 20 . 60 5 75 . 55 . 84 8 112 20 20 Destroy Leader 874 | . 34 40 . 76 . . 54 . 2 64 . . 84 2 . 2 . . . 10 36 . 82 . 76 20 34 . 26 74 110 32 16 Allied During Kill 1417 | . . 3 . . . . . . 47 551 170 85 94 . . . . . . . . . 239 . 83 87 . 8 2 48 . . . Trap Triggered on 0b10 292 | . . . . . . . . . . . . . . 10 . . . . . . . . 120 . 10 . . . 24 24 104 . . Successful Hack 1729 | . 34 . 46 53 27 . 140 . . 41 . . 42 51 . 103 . . . . 85 . 159 46 222 14 196 2 170 72 153 56 17 Select Force Hacks 623 | . 60 . . 60 180 . 60 . . . . . 150 . . . . . . . . . . . 30 . 60 . 23 . . . . Disable Machine 768 | . 15 . . 90 . . 45 . . . 15 . 30 . . . . . . . 45 . 45 . 60 15 . . . 120 288 . . Anti-Garrison Action 651 | . . . . . . . . . . . . . . . . . . . . . . . . 350 . 100 . 50 . . . 113 38 Destroy Structure 1701 | . 19 29 6 12 1 . 72 . 1 36 18 17 31 30 . 48 . . . . 176 . 166 83 164 34 50 . 135 156 189 57 171 Advance Influence 300 | . . . . . . . . . . . . . . . . . . . . . 300 . . . . . . . . . . . . Partial Spotted 822 | . . . 15 135 . . 15 . . 45 . . 45 . . 30 . . . . 105 . 30 . 135 . 45 30 72 48 48 12 12 Lose Combat Pursuer 2403 | . . 15 75 150 . . 375 . . 30 . . 180 90 . 315 . 60 . . 105 . 120 . 180 165 15 120 240 . 168 . . Influence Decreases 16376 | 10 337 382 70 395 495 311 436 500 104 989 456 481 743 375 185 462 134 60 . 95 590 417 1232 29 1488 141 1222 91 887 651 1285 641 682 Entered New Map 4596 | . . . . 45 305 311 . 420 44 70 236 271 103 215 155 16 41 . . . . 327 26 29 262 101 390 51 159 137 165 435 282 Time Decay 6971 | 10 327 263 60 310 180 . 376 80 40 382 160 170 140 130 30 267 93 60 . 95 230 90 382 . 556 . 342 . 458 494 770 206 270 Search Patrol Dispatched 300 | . . . . . . . . . . . . . . . . . . . . . 100 . . . . . . . 200 . . . . Lost Part 554 | . 10 82 . 30 10 . 50 . . . . . 40 20 . 30 . . . . 50 . 12 . 40 . 10 . 10 . 40 . 120 Lost Ally 1733 | . . 37 10 10 . . 10 . 20 237 60 40 460 10 . . . . . . 60 . 389 . 180 40 30 40 60 20 10 . 10 Purge Threat 2222 | . . . . . . . . . . 300 . . . . . 149 . . . . 150 . 423 . 450 . 450 . . . 300 . . Squads Dispatched 164 | . 4 1 1 3 . . 17 . 1 2 . . 14 5 . 10 . . . . 10 . 13 . 21 . 12 . 22 1 11 9 7 Investigation 83 | . 3 . 1 2 . . 10 . . 2 . . 7 2 . 7 . . . . 6 . 8 . 10 . 10 . 9 . 5 1 . Extermination 29 | . . . . . . . 3 . . . . . 1 1 . 2 . . . . 2 . 2 . 6 . 1 . 6 1 1 1 2 Reinforcement 37 | . 1 . . 1 . . 4 . 1 . . . 3 2 . 1 . . . . 1 . 2 . 5 . 1 . 7 . 5 2 1 Assault 11 | . . 1 . . . . . . . . . . 2 . . . . . . . . . . . . . . . . . . 4 4 Garrison 4 | . . . . . . . . . . . . . 1 . . . . . . . 1 . 1 . . . . . . . . 1 . Intercept . | . . . . . . . . . . . . . . . . . . . . . . . . . . . . . . . . . . Searches Triggered 3 | . . . . . . . . . . . . . . . . . . . . . 1 . . . . . . . 2 . . . . Unchained Authorized 4 | . . . . . . . . . . . . . . 1 . 1 . . . . . . . . 1 . . . . . . 1 . Construction Impeded 1 | . . . . . . . 1 . . . . . . . . . . . . . . . . . . . . . . . . . . Haulers Reinforced 2 | . . . . . . . 1 . 1 . . . . . . . . . . . . . . . . . . . . . . . . Active Scanning Responses . | . . . . . . . . . . . . . . . . . . . . . . . . . . . . . . . . . . Cargo Convoy Interrupts . | . . . . . . . . . . . . . . . . . . . . . . . . . . . . . . . . . . Stealth | -11 -10 -10 -9 -9 -9 -9 -6 -6 -6 -6 -6 -6 -6 -5 -5 -5 -5 -5 -5 -4 -4 -4 -4 -4 -4 -4 -3 -3 -2 -2 -2 -1 -1 --------- Run | Yrd Mat Min Mat Sto Rec Scr Fac Was Fac Ext Cet Arc Hub Fac Was Fac Upp Upp Zhi Pro Fac Was Fac Gar Fac Gar Res Gar Res Qua Frg Acc Com Distress Signals 55 | . 3 . 1 4 . . . . . 2 2 . 10 . . 1 . . . . 1 . 4 . 1 . 4 . 5 1 16 . . Communications Jammed 63 | . . . . . . . . . . . . . . . . . . . . . . . 2 . 9 . 4 . 7 . 37 4 . Distress Signals 53 | . . . . . . . . . . . . . . . . . . . . . . . . . 1 . 4 . 7 . 37 4 . Times Spotted 584 | . 15 33 13 29 3 . 42 . 3 33 5 1 28 14 . 49 1 4 . 7 36 . 25 . 41 29 13 20 34 11 75 8 12 Peak Tracking Total 21 | . 5 16 8 6 1 . 8 . 3 4 5 2 15 21 . 21 1 4 . 4 12 . 5 . 7 13 4 10 8 3 6 2 4 Tactical Retreats 98 | . . 3 2 9 . . 11 . . 2 . . 4 6 . 13 . 2 . . 4 . 6 . 7 2 2 2 9 . 12 2 . ECM-based Alert Blocks 7 | . . . . . . . . . . . . . . . . . . . . . . . . . 1 . 3 . . . . 3 . Traps | -11 -10 -10 -9 -9 -9 -9 -6 -6 -6 -6 -6 -6 -6 -5 -5 -5 -5 -5 -5 -4 -4 -4 -4 -4 -4 -4 -3 -3 -2 -2 -2 -1 -1 ------- Run | Yrd Mat Min Mat Sto Rec Scr Fac Was Fac Ext Cet Arc Hub Fac Was Fac Upp Upp Zhi Pro Fac Was Fac Gar Fac Gar Res Gar Res Qua Frg Acc Com Traps Triggered 35 | . . . . 1 . . 5 . . . . . 1 1 . 2 . . . . 2 . . . 7 3 . 1 . . 11 . 1 Indirectly 2 | . . . . . . . 2 . . . . . . . . . . . . . . . . . . . . . . . . . . Trap Hack Attempts 118 | . . . . . . . . . . . . . 27 . . . . . . . . . . . . . 45 . 16 . 30 . . Triggered 2 | . . . . . . . . . . . . . 1 . . . . . . . . . . . . . 1 . . . . . . Disarmed 22 | . . . . . . . . . . . . . . . . . . . . . . . 9 . 12 . 1 . . . . . . Reprogrammed 71 | . . . . . . . . . . . . . 3 6 . . . . . . . . 22 . 5 . 12 . 8 7 8 . . Reused 35 | . . . . . . . . . . . . . . 1 . . . . . . . . 12 . 3 . . . 3 3 13 . . Traps Extracted 24 | . . . . . . . . . . . . . . . . . . . . . . . 6 . 8 . . . . . 10 . . Installed 24 | . . . . . . . . . . . . . . . . . . . . . . . . . 6 . . . . . 18 . . Triggered 33 | . . . . . . . . . . . . . . 1 . . . . . . . . 12 . 1 . . . 3 3 13 . . Most Traps Carried 8 | . . . . . . . . . . . . . . . . . . . . . . . 6 6 8 8 8 8 8 8 8 . . Machines | -11 -10 -10 -9 -9 -9 -9 -6 -6 -6 -6 -6 -6 -6 -5 -5 -5 -5 -5 -5 -4 -4 -4 -4 -4 -4 -4 -3 -3 -2 -2 -2 -1 -1 ---------- Run | Yrd Mat Min Mat Sto Rec Scr Fac Was Fac Ext Cet Arc Hub Fac Was Fac Upp Upp Zhi Pro Fac Was Fac Gar Fac Gar Res Gar Res Qua Frg Acc Com Machines Disabled 77 | . 1 . . 6 . . 3 . . 1 1 . 2 . . . . . . . 3 . 3 5 4 5 . 1 . 11 28 1 2 Max in Single Turn 2 | . 1 . . 1 . . 2 . . 1 1 . . . . . . . . . 2 . . 1 1 1 . 1 . 1 1 1 2 Garrison Access 22 | . . . . 1 . . 2 . . . . . 2 . . 3 . . . . 3 . 2 . 2 . 2 . 2 1 1 1 . Garrison Relay 8 | . . . . . . . . . . . . . . . . . . . . . . . . 5 . 2 . 1 . . . . . Phase Generator 1 | . . . . . . . . . . . . . . . . . . . . . . . . . . . . . . . . . 1 Network Hub 4 | . . . . . . . . . . . . . 4 . . . . . . . . . . . . . . . . . . . . Machines Repaired . | . . . . . . . . . . . . . . . . . . . . . . . . . . . . . . . . . . Machines Dismantled . | . . . . . . . . . . . . . . . . . . . . . . . . . . . . . . . . . . Machines Sabotaged 3 | . . . . . . . . . . . . . 3 . . . . . . . . . . . . . . . . . . . . Overloaded Fab Kills . | . . . . . . . . . . . . . . . . . . . . . . . . . . . . . . . . . . Hacking | -11 -10 -10 -9 -9 -9 -9 -6 -6 -6 -6 -6 -6 -6 -5 -5 -5 -5 -5 -5 -4 -4 -4 -4 -4 -4 -4 -3 -3 -2 -2 -2 -1 -1 --------- Run | Yrd Mat Min Mat Sto Rec Scr Fac Was Fac Ext Cet Arc Hub Fac Was Fac Upp Upp Zhi Pro Fac Was Fac Gar Fac Gar Res Gar Res Qua Frg Acc Com Machines Accessed 319 | . 10 . 7 12 12 4 27 . 1 14 . . 13 6 . 21 . . 6 . 16 . 32 2 32 1 28 2 30 15 17 6 5 Terminals 184 | . 7 . 6 8 6 . 12 . 1 13 . . 12 3 . 11 . . . . 8 . 15 2 15 1 13 2 16 13 11 5 4 Fabricators 21 | . . . . . . . 3 . . . . . . 1 . . . . . . 1 . 3 . 3 . 3 . 3 . 3 1 . Repair Stations 18 | . 1 . . 1 . . 3 . . . . . . 1 . . . . . . . . 3 . 3 . 2 . 3 1 . . . Recycling Units 49 | . 2 . . 2 6 . 5 . . 1 . . . . . 6 . . . . 4 . 5 . 6 . 5 . 5 . 1 . 1 Scanalyzers 14 | . . . 1 . . . 2 . . . . . . 1 . 1 . . . . . . 3 . 2 . 2 . 1 . 1 . . Garrison Access 23 | . . . . 1 . . 2 . . . . . 1 . . 3 . . . . 3 . 3 . 3 . 3 . 2 1 1 . . Total Hacks 1171 | . 42 . 24 29 29 15 73 . 1 31 . . 28 17 . 53 . . 27 . 53 . 183 13 151 6 96 7 156 49 59 17 12 Successful 783 | . 25 . 15 20 21 15 56 . 1 18 . . 19 12 . 28 . . 27 . 30 . 131 4 112 1 74 2 94 27 37 10 4 Failed 382 | . 16 . 8 9 8 . 16 . . 13 . . 9 5 . 25 . . . . 23 . 51 9 38 5 21 5 62 22 22 7 8 Catastrophic 59 | . 3 . . . 2 . 2 . . 1 . . 2 . . 7 . . . . 1 . 6 2 9 2 1 . 15 1 3 1 1 Database Lockouts 6 | . 1 . 1 . . . 1 . . . . . . . . . . . . . . . 1 . 1 . 1 . . . . . . Manual 669 | . 32 . 16 22 26 . 25 . . 18 1 . 24 7 . 31 . . . . 31 . 96 11 93 6 50 6 100 28 33 4 9 Terminals 822 | . 32 . 20 22 21 . 36 . 1 29 . . 27 9 . 33 . . . . 43 . 135 13 108 6 60 7 109 44 45 12 10 Fabricators 62 | . . . . . . . 7 . . . . . . 2 . . . . . . 1 . 8 . 11 . 10 . 7 . 11 5 . Repair Stations 56 | . 3 . . 3 . . 7 . . . . . . 1 . . . . . . . . 6 . 11 . 5 . 16 4 . . . Recycling Units 88 | . 7 . . 3 8 . 6 . . 2 . . . . . 14 . . . . 5 . 7 . 6 . 6 . 21 . 1 . 2 Scanalyzers 57 | . . . 4 . . . 13 . . . . . . 5 . 2 . . . . . . 18 . 6 . 7 . 1 . 1 . . Garrison Access 44 | . . . . 1 . . 4 . . . . . 1 . . 4 . . . . 4 . 9 . 9 . 8 . 2 1 1 . . Terminal Hacks 300 | . 8 . 4 4 6 15 15 . 1 9 . . 2 1 . 7 . . 27 . 8 . 61 3 43 1 23 2 29 13 11 5 2 Record 24 | . . . . . . 6 . . . . . . . . . . . . 15 . . . . . . . . . . 2 1 . . Part Schematic 19 | . . . . . 3 . 3 . . . . . 1 . . . . . 4 . . . 1 . 3 . 1 . 3 . . . . Robot Analysis 19 | . 1 . 1 . . 8 1 . . . . . . . . . . . 4 . . . . . . . 2 . 1 . 1 . . Prototype ID Bank 37 | . 1 . . 1 1 . 3 . . 1 . . 1 . . 2 . . 4 . . . 7 . 3 . 2 . 6 2 2 1 . Open Door 14 | . . . . 1 . . . . 1 6 . . . . . . . . . . . . . . . . . 1 . 1 . 3 1 Branch Access Points 7 | . . . 1 . . . 1 . . . . . . . . 1 . . . . . . 1 . . . 1 . 1 . . 1 . Emergency Access Points 1 | . . . . . . . . . . . . . . . . . . . . . . . 1 . . . . . . . . . . Machine Index 1 | . . . . . . . . . . . . . . . . . . . . . . . 1 . . . . . . . . . . Terminal Index 9 | . 1 . . . 1 . . . . . . . . . . 1 . . . . . . 2 . 1 . . . 1 1 1 . . Fabricator Index 3 | . . . . . . . . . . . . . . . . . . . . . . . 1 . 1 . 1 . . . . . . Repair Station Index 2 | . . . . . . . . . . . . . . . . . . . . . . . . . . . . . 2 . . . . Recycling Unit Index 3 | . 1 . . . . . . . . . . . . . . . . . . . . . 1 . . . . . . . 1 . . Scanalyzer Index 2 | . . . . . . . . . . . . . . . . . . . . . . . . . 1 . 1 . . . . . . Garrison Index 4 | . . . . . . . 1 . . . . . . . . . . . . . 1 . 1 . 1 . . . . . . . . Alert Level 5 | . . . . . . . 1 . . . . . . . . . . . . . . . 4 . . . . . . . . . . Unreport Threat 16 | . . . . . . . . . . 2 . . . . . 1 . . . . 1 . 4 . 3 . 3 . . . 2 . . Locate Traps 12 | . . . . . . . 1 . . . . . . . . . . . . . . . 7 . 2 . . . 1 1 . . . Disarm Traps 4 | . . . . . . . . . . . . . . . . . . . . . . . 2 . 2 . . . . . . . . Reprogram Traps 12 | . . . . . . . . . . . . . . 1 . . . . . . . . 7 . 1 . . . 1 2 . . . Dispatch Records 1 | . . . . . . . . . . . . . . . . . . . . . . . 1 . . . . . . . . . . Maintenance Status 1 | . . . . . . . . . . . . . . . . . . . . . . . 1 . . . . . . . . . . Surveillance Status 1 | . 1 . . . . . . . . . . . . . . . . . . . . . . . . . . . . . . . . Transport Status 1 | . . . . . . . . . . . . . . . . . . . . . . . . . . . 1 . . . . . . Investigation Status 2 | . . . . . . . . . . . . . . . . . . . . . . . . . 2 . . . . . . . . Extermination Status 9 | . . . . . . . . . . . . . . . . . . . . . 1 . 2 . 3 . 2 . 1 . . . . Reinforcement Status 1 | . . . . . . . . . . . . . . . . . . . . . . . 1 . . . . . . . . . . Recall Investigation 7 | . . . . . . . 1 . . . . . . . . . . . . . 2 . 1 . 3 . . . . . . . . Recall Extermination 11 | . . . . . . . . . . . . . . . . . . . . . . . 2 . 4 . 1 . 3 1 . . . Recall Reinforcements 4 | . . . . . . . 1 . . . . . . . . . . . . . . . 1 . 2 . . . . . . . . Hauler Manifests 6 | . 1 . . . . . . . . . . . . . . . . . . . . . 1 . 1 . 2 . 1 . . . . Registered Components 6 | . . . 1 . . . . . . . . . . . . . . . . . . . 1 . 1 . 1 . 1 1 . . . Registered Prototypes 3 | . . . . . . . . . . . . . . . . . . . . . . . 1 . 1 . 1 . . . . . . Zone Layout 45 | . 2 . 1 2 1 . 2 . . . . . . . . 2 . . . . 3 . 9 . 8 . 4 . 7 2 2 . . Garrison Registry 3 | . . . . . . . . . . . . . . . . . . . . . . . . 1 . 1 . 1 . . . . . Patrol Navigation 1 | . . . . . . . . . . . . . . . . . . . . . . . . 1 . . . . . . . . . Security Stations 1 | . . . . . . . . . . . . . . . . . . . . . . . . 1 . . . . . . . . . Proto ID Catalog 2 | . . . . . . 1 . . . . . . . . . . . . . . . . . . . . . . . . 1 . . Disengage Seal 1 | . . . . . . . . . . . . . . . . . . . . . . . . . . . . . . . . . 1 Fabricator Hacks 37 | . . . . . . . 4 . . . . . . 2 . . . . . . . . 5 . 7 . 5 . 3 . 8 3 . Network Status 6 | . . . . . . . 2 . . . . . . . . . . . . . . . 1 . 1 . . . 1 . . 1 . Load Schematic 19 | . . . . . . . 1 . . . . . . 1 . . . . . . . . 3 . 4 . 3 . 2 . 4 1 . Build 12 | . . . . . . . 1 . . . . . . 1 . . . . . . . . 1 . 2 . 2 . . . 4 1 . Repair Station Hacks 43 | . 2 . . 2 . . 6 . . . . . . . . . . . . . . . 3 . 10 . 5 . 11 4 . . . Scan Component 21 | . 1 . . 1 . . 3 . . . . . . . . . . . . . . . 2 . 5 . 2 . 5 2 . . . Repair 20 | . 1 . . 1 . . 3 . . . . . . . . . . . . . . . 1 . 5 . 2 . 5 2 . . . Refit 2 | . . . . . . . . . . . . . . . . . . . . . . . . . . . 1 . 1 . . . . Recycling Unit Hacks 9 | . . . . . . . 1 . . . . . . . . . . . . . . . . . . . . . 8 . . . . Recycle Component 1 | . . . . . . . . . . . . . . . . . . . . . . . . . . . . . 1 . . . . Process 3 | . . . . . . . . . . . . . . . . . . . . . . . . . . . . . 3 . . . . Retrieve Matter 4 | . . . . . . . 1 . . . . . . . . . . . . . . . . . . . . . 3 . . . . Retrieve Components 1 | . . . . . . . . . . . . . . . . . . . . . . . . . . . . . 1 . . . . Scanalyzer 42 | . . . 3 . . . 10 . . . . . . 3 . 2 . . . . . . 15 . 4 . 4 . . . 1 . . Insert Component 12 | . . . 1 . . . 3 . . . . . . . . . . . . . . . 5 . 2 . 1 . . . . . . Analyze 14 | . . . 1 . . . 5 . . . . . . . . . . . . . . . 5 . 2 . 1 . . . . . . Retrieve Study 16 | . . . 1 . . . 2 . . . . . . 3 . 2 . . . . . . 5 . . . 2 . . . 1 . . Garrison Access Hacks 25 | . . . . 1 . . 2 . . . . . 1 . . 3 . . . . 3 . 3 . 3 . 5 . 2 1 1 . . Unlock Access 3 | . . . . . . . . . . . . . . . . . . . . . . . 1 . 1 . 1 . . . . . . Seal Access 20 | . . . . 1 . . 2 . . . . . 1 . . 3 . . . . 3 . 2 . 2 . 2 . 2 1 1 . . Coupler Status 2 | . . . . . . . . . . . . . . . . . . . . . . . . . . . 2 . . . . . . Unauthorized Hacks 325 | . 15 . 8 13 15 . 18 . . 9 . . 16 6 . 16 . . . . 19 . 43 1 45 . 32 . 41 9 16 2 1 Terminals 235 | . 11 . 8 11 9 . 9 . . 8 . . 16 5 . 10 . . . . 14 . 29 1 29 . 19 . 30 9 14 2 1 Track 32 | . 2 . . 4 . . . . . . . . 3 . . 1 . . . . 1 . 7 . 6 . 3 . 4 . 1 . . Assimilate 25 | . . . 1 2 . . 1 . . 2 . . 1 1 . 1 . . . . 1 . 2 . 2 . 2 . 4 2 2 1 . Botnet 63 | . 3 . 2 . 4 . 2 . . 1 . . 1 2 . 1 . . . . 5 . 8 1 9 . 6 . 10 2 4 1 1 Disrupt 5 | . . . . . . . . . . . . . . . . 1 . . . . . . . . 1 . 2 . . . 1 . . Operators 6 | . 1 . . . . . . . . . . . . . . . . . . . . . 2 . 1 . 1 . 1 . . . . Skim 99 | . 5 . 5 5 5 . 6 . . 5 . . 6 2 . 6 . . . . 7 . 10 . 10 . 5 . 11 5 6 . . Sabotage 5 | . . . . . . . . . . . . . 5 . . . . . . . . . . . . . . . . . . . . Fabricators 16 | . . . . . . . 1 . . . . . . . . . . . . . 1 . 3 . 4 . 3 . 3 . 1 . . Prioritize 5 | . . . . . . . . . . . . . . . . . . . . . . . 1 . 1 . 2 . . . 1 . . Liberate 3 | . . . . . . . . . . . . . . . . . . . . . 1 . . . 1 . . . 1 . . . . Recompile 8 | . . . . . . . 1 . . . . . . . . . . . . . . . 2 . 2 . 1 . 2 . . . . Repair Stations 4 | . 1 . . . . . 1 . . . . . . 1 . . . . . . . . 1 . . . . . . . . . . Mechanics 1 | . . . . . . . 1 . . . . . . . . . . . . . . . . . . . . . . . . . . Patch 3 | . 1 . . . . . . . . . . . . 1 . . . . . . . . 1 . . . . . . . . . . Recycling Units 51 | . 3 . . 2 6 . 5 . . 1 . . . . . 6 . . . . 4 . 5 . 6 . 5 . 7 . 1 . . Monitor 1 | . . . . . . . . . . . . . . . . . . . . . . . . . . . . . 1 . . . . Reject 2 | . 1 . . . . . . . . . . . . . . . . . . . . . . . . . . . 1 . . . . Recyclers 1 | . . . . . . . . . . . . . . . . . . . . . . . . . . . . . 1 . . . . Mask 1 | . . . . . . . . . . . . . . . . . . . . . . . . . . . . . 1 . . . . Tunnel 10 | . 2 . . 2 6 . . . . . . . . . . . . . . . . . . . . . . . . . . . . Fedlink 35 | . . . . . . . 5 . . 1 . . . . . 6 . . . . 4 . 5 . 6 . 5 . 2 . 1 . . Scraphulk 1 | . . . . . . . . . . . . . . . . . . . . . . . . . . . . . 1 . . . . Scanalyzers 6 | . . . . . . . 2 . . . . . . . . . . . . . . . . . 1 . 2 . 1 . . . . Extract 6 | . . . . . . . 2 . . . . . . . . . . . . . . . . . 1 . 2 . 1 . . . . Garrison Access 13 | . . . . . . . . . . . . . . . . . . . . . . . 5 . 5 . 3 . . . . . . Broadcast 3 | . . . . . . . . . . . . . . . . . . . . . . . 1 . 1 . 1 . . . . . . Restock 1 | . . . . . . . . . . . . . . . . . . . . . . . . . . . 1 . . . . . . Decoy 2 | . . . . . . . . . . . . . . . . . . . . . . . 1 . 1 . . . . . . . . Redirect 2 | . . . . . . . . . . . . . . . . . . . . . . . 1 . 1 . . . . . . . . Intercept 2 | . . . . . . . . . . . . . . . . . . . . . . . 1 . 1 . . . . . . . . Watchers 3 | . . . . . . . . . . . . . . . . . . . . . . . 1 . 1 . 1 . . . . . . Data Cores Recovered 3 | . . . 1 . . . . . . . . . . . . . . . . . . . . . . . 1 . . 1 . . . Used 1 | . . . . . . . . . . . . . . . . . . . . . . . . . . . 1 . . . . . . Hacking Detections 171 | . 10 . 6 8 7 . 20 . . 11 . . 9 2 . 8 . . . . 4 . 12 2 14 1 13 1 18 8 10 4 3 Full Trace Events 12 | . . . 1 . . . 2 . . 1 . . 1 . . . . . . . . . . . . . 1 . 3 . 2 1 . Feedback Events 1 | . . . . . . . 1 . . . . . . . . . . . . . . . . . . . . . . . . . . Corruption 1 | . . . . . . . 1 . . . . . . . . . . . . . . . . . . . . . . . . . . Feedback Blocked . | . . . . . . . . . . . . . . . . . . . . . . . . . . . . . . . . . . Robot Schematics Acquired 5 | . . . . . . . . . . . . . . . . . . . . . . . . . . . . . . . 5 . . Robots Built . | . . . . . . . . . . . . . . . . . . . . . . . . . . . . . . . . . . Authchips . | . . . . . . . . . . . . . . . . . . . . . . . . . . . . . . . . . . Time . | . . . . . . . . . . . . . . . . . . . . . . . . . . . . . . . . . . Total Robot Build Rating . | . . . . . . . . . . . . . . . . . . . . . . . . . . . . . . . . . . Part Schematics Acquired 61 | . . . 1 . 3 . 11 . . . . . 1 . . . . . 4 . . . 6 . 10 . 6 . 4 . 15 . . Parts Built 16 | . . . . . . . 2 . . . . . . 2 . . . . . . . . 1 . 2 . 3 . . . 5 1 . Authchips 7 | . . . . . . . . . . . . . . 1 . . . . . . . . 1 . 2 . 1 . . . 2 . . Time 583 | . . . . . . . 47 . . . . . . 24 . . . . . . . . 26 . 195 . 48 . . . 175 68 . Total Part Build Rating 106 | . . . . . . . 10 . . . . . . 6 . . . . . . . . 6 . 15 . 23 . . . 38 8 . Part Studies Acquired 16 | . . . 1 . . . 2 . . . . . . 3 . 2 . . . . . . 5 . . . 2 . . . 1 . . Parts Repaired 20 | . 1 . . 1 . . 3 . . . . . . . . . . . . . . . 1 . 5 . 2 . 5 2 . . . Time 875 | . 38 . . 136 . . 133 . . . . . . . . . . . . . . . 38 . 160 . 77 . 114 179 . . . Parts Recycled 1 | . . . . . . . . . . . . . . . . . . . . . . . . . . . . . 1 . . . . Recycled Matter 104 | . . . . . . . . . . . . . . . . . . . . . . . . . . . . . 104 . . . . Retrieved Matter 104 | . . . . . . . . . . . . . . . . . . . . . . . . . . . . . 104 . . . . Retrieved Components 1 | . . . . . . . . . . . . . . . . . . . . . . . . . . . . . 1 . . . . Parts Scanalyzed 12 | . . . 1 . . . 3 . . . . . . . . . . . . . . . 5 . 2 . 1 . . . . . . Part Schematics Acquired 12 | . . . 1 . . . 3 . . . . . . . . . . . . . . . 5 . 2 . 1 . . . . . . Parts Damaged 1 | . . . 1 . . . . . . . . . . . . . . . . . . . . . . . . . . . . . . Bothacking | -11 -10 -10 -9 -9 -9 -9 -6 -6 -6 -6 -6 -6 -6 -5 -5 -5 -5 -5 -5 -4 -4 -4 -4 -4 -4 -4 -3 -3 -2 -2 -2 -1 -1 ------------ Run | Yrd Mat Min Mat Sto Rec Scr Fac Was Fac Ext Cet Arc Hub Fac Was Fac Upp Upp Zhi Pro Fac Was Fac Gar Fac Gar Res Gar Res Qua Frg Acc Com Used RIF Installer 4 | . . . . . . . . . . . . . . . . . . . . . . . . 1 . 1 . 2 . . . . . Hotswap 1 | . . . . . . . . . . . . . . . . . . . . . . . . . . . . 1 . . . . . Threat Obfuscator 1 | . . . . . . . . . . . . . . . . . . . . . . . . . . . . 1 . . . . . Structural Interface 1 | . . . . . . . . . . . . . . . . . . . . . . . . . . 1 . . . . . . . Robots Hacked 17 | . . . . . . . 1 . . . . 4 . . . . . . . . . . . . 3 2 . . 1 1 5 . . Non-combat 9 | . . . . . . . 1 . . . . 4 . . . . . . . . . . . . 3 . . . 1 . . . . Combat 3 | . . . . . . . . . . . . . . . . . . . . . . . . . . 2 . . . 1 . . . Robot Hacks Applied 12 | . . . . . . . 1 . . . . 4 . . . . . . . . . . . . 3 2 . . 1 1 . . . no_distress 1 | . . . . . . . . . . . . . . . . . . . . . . . . . . . . . 1 . . . . find_chute 1 | . . . . . . . 1 . . . . . . . . . . . . . . . . . . . . . . . . . . drop_inventory 1 | . . . . . . . . . . . . . . . . . . . . . . . . . 1 . . . . . . . . check_alert 4 | . . . . . . . . . . . . 4 . . . . . . . . . . . . . . . . . . . . . overwrite_iff 1 | . . . . . . . . . . . . . . . . . . . . . . . . . . 1 . . . . . . . formatsys_low 2 | . . . . . . . . . . . . . . . . . . . . . . . . . 2 . . . . . . . . formatsys_high 2 | . . . . . . . . . . . . . . . . . . . . . . . . . . 1 . . . 1 . . . Manual 5 | . . . . . . . . . . . . . . . . . . . . . . . . . . . . . . . 5 . . Relay Couplers Released 37 | . . . . . . . . . . . . . 2 . . . . . . . . . 1 17 . 9 1 4 . 1 . 2 . Machine Destruction 37 | . . . . . . . . . . . . . 2 . . . . . . . . . 1 17 . 9 1 4 . 1 . 2 . Attached 6 | . . . . . . . . . . . . . . . . . . . . . . . . . 1 4 . . . 1 . . . Fabnet Peak Effective % . | . . . . . . . . . . . . . . . . . . . . . . . . . . . . . . . . . . Robots Rewired 26 | . . . . . . . . . . 20 . . . . . . . . . . . . . 4 . 2 . . . . . . . Allies Hacked 2 | . . . . . . . . . . . . . 1 . . . . . . . . . 1 . . . . . . . . . . Hacks Repelled . | . . . . . . . . . . . . . . . . . . . . . . . . . . . . . . . . . . Allies | -11 -10 -10 -9 -9 -9 -9 -6 -6 -6 -6 -6 -6 -6 -5 -5 -5 -5 -5 -5 -4 -4 -4 -4 -4 -4 -4 -3 -3 -2 -2 -2 -1 -1 -------- Run | Yrd Mat Min Mat Sto Rec Scr Fac Was Fac Ext Cet Arc Hub Fac Was Fac Upp Upp Zhi Pro Fac Was Fac Gar Fac Gar Res Gar Res Qua Frg Acc Com Total Allies 119 | . . 4 1 1 . . 1 20 . 31 5 . 1 1 . . . . . . 3 20 2 6 6 4 1 2 5 3 1 1 . Largest Group 26 | . . 2 1 1 . . 1 20 20 24 26 26 23 1 . . . . . . 3 20 20 6 8 2 2 2 1 2 1 1 1 Highest-Rated Group 1213 | . . 51 10 10 . . 10 709 709 830 1213 1213 1015 26 . . . . . . 141 777 777 330 419 218 164 71 139 344 45 45 45 Highest-Rated Ally 344 | . . 31 10 10 . . 10 50 50 159 159 153 96 26 . . . . . . 47 50 50 95 95 119 119 38 139 344 45 45 45 Initial UFD Resources 149 | . . . . . . . 22 42 42 42 44 44 44 47 47 47 69 69 69 73 73 91 91 101 101 113 117 137 140 149 149 . . Total Orders 28 | . . . . 2 . . . . . . . 3 . . . . . . . . . . 2 . 4 2 . . 2 . 12 1 . STAY 16 | . . . . 1 . . . . . . . . . . . . . . . . . . 1 . . 1 . . 1 . 11 1 . ROAM 1 | . . . . . . . . . . . . 1 . . . . . . . . . . . . . . . . . . . . . FOLLOW 7 | . . . . 1 . . . . . . . 2 . . . . . . . . . . 1 . . 1 . . 1 . 1 . . AID 4 | . . . . . . . . . . . . . . . . . . . . . . . . . 4 . . . . . . . . Ally Attacks 810 | . . 13 . . . . . . 42 245 38 31 131 . . . . . . . 20 . 107 . 63 32 10 7 12 59 . . . Total Damage 23253 | . . 150 . . . . . . 384 5636 893 929 3284 . . . . . . . 461 . 3171 . 2325 1191 442 291 600 3496 . . . Kills 130 | . . 2 . . . . . . 3 33 10 4 20 . . . . . . . 2 . 12 . 12 12 5 1 4 10 . . . Allies Corrupted 5 | . . . . . . . . . . . . . 4 . . . . . . . . . . . . 1 . . . . . . . Allies Melted 9 | . . . . . . . . . . . . . 1 . . . . . . . . . 2 . . . . . . . 6 . . Intel | -11 -10 -10 -9 -9 -9 -9 -6 -6 -6 -6 -6 -6 -6 -5 -5 -5 -5 -5 -5 -4 -4 -4 -4 -4 -4 -4 -3 -3 -2 -2 -2 -1 -1 ------- Run | Yrd Mat Min Mat Sto Rec Scr Fac Was Fac Ext Cet Arc Hub Fac Was Fac Upp Upp Zhi Pro Fac Was Fac Gar Fac Gar Res Gar Res Qua Frg Acc Com Active Infowar (turns) 20712 | 3 850 609 127 688 361 126 1049 177 87 921 320 288 277 277 77 667 206 214 55 376 486 199 1036 305 1580 268 775 88 1130 1244 4828 430 588 Optics 4762 | . . . . . . . . . . . . . . . . . . . . . . . . . . . . . . . 3744 430 588 Sensors 16248 | . . 2 . . . . 1049 177 87 921 320 288 277 275 77 667 206 214 55 376 486 199 1033 . 782 268 775 42 1105 1241 4425 430 471 Zeronet 793 | . . . . . . . . . . . . . . . . . . . . . . . . . 793 . . . . . . . . Terrain 1612 | . . . . . . . 96 . . . . . . . . . . . . . . . . . . . 8 . . . 677 430 401 Structural 4271 | . . . 13 75 . . 861 57 . . . . 173 249 . 556 206 214 55 376 468 199 124 . . . 645 . . . . . . Seismic 2007 | 3 850 607 114 433 . . . . . . . . . . . . . . . . . . . . . . . . . . . . . Decoding 797 | . . . . . . . . . . . . . . . . . . 174 55 376 192 . . . . . . . . . . . . T.N.C. 231 | . . . . 178 53 . . . . . . . . . . . . . . . . . . . . . . . . . . . . Machine Analysis 1337 | . . 35 127 688 361 126 . . . . . . . . . . . . . . . . . . . . . . . . . . . Cloaking 6503 | . . . . . . . . . . . . . . . . . . . . . 24 21 59 8 114 . 10 33 1011 223 4249 430 321 Jamming 7383 | . . . . . . . . . . . . . . . . . . . . . . . 356 305 161 45 155 46 1089 179 4351 430 266 ECM 754 | . . . . . . . . . . . . . . . . . . . . . . . . . 9 . 52 . . . . 429 264 Robot Analysis Total 19 | . 1 . 1 . . 8 1 . . . . . . . . . . . 4 . . . . . . . 2 . 1 . 1 . . Derelict Logs Recovered 3 | . . 1 . . . . . . . . . . . . . . 2 . . . . . . . . . . . . . . . . Drone Launches . | . . . . . . . . . . . . . . . . . . . . . . . . . . . . . . . . . . Drone Recoveries . | . . . . . . . . . . . . . . . . . . . . . . . . . . . . . . . . . . Decoded 0b10 Intel 14 | . . . . . . . . . . . . . . . . . . . . . 14 . . . . . . . . . . . . Items 14 | . . . . . . . . . . . . . . . . . . . . . 14 . . . . . . . . . . . . Exploration | -11 -10 -10 -9 -9 -9 -9 -6 -6 -6 -6 -6 -6 -6 -5 -5 -5 -5 -5 -5 -4 -4 -4 -4 -4 -4 -4 -3 -3 -2 -2 -2 -1 -1 ------------- Run | Yrd Mat Min Mat Sto Rec Scr Fac Was Fac Ext Cet Arc Hub Fac Was Fac Upp Upp Zhi Pro Fac Was Fac Gar Fac Gar Res Gar Res Qua Frg Acc Com Turns Passed 21806 | 66 886 1141 127 688 361 387 1053 177 87 921 320 349 288 279 77 667 206 214 55 376 486 199 1036 305 1630 268 775 88 1146 1302 4828 430 588 Spaces Moved 39592 | 37 670 1107 224 972 539 1168 1971 183 99 985 291 207 611 621 288 1676 564 539 154 691 1290 119 2080 623 3919 541 2090 363 3359 2780 7506 590 735 Core 47 | 10 . . . . . . . . . . . 37 . . . . . . . . . . . . . . . . . . . . . Treads 2 | . 2 . . . . . . . . . . . . . . . . . . . . . . . . . . . . . . . . Legs . | . . . . . . . . . . . . . . . . . . . . . . . . . . . . . . . . . . Wheels 1151 | 27 668 456 . . . . . . . . . . . . . . . . . . . . . . . . . . . . . . . Hover 5318 | . . . . . . . . . . . . . . . . . . . . . . . . . . . . . . . 3993 590 735 Flight 33074 | . . 651 224 972 539 1168 1971 183 99 985 291 170 611 621 288 1676 564 539 154 691 1290 119 2080 623 3919 541 2090 363 3359 2780 3513 . . Fastest Speed 6 | 50 100 37 31 31 31 31 24 25 25 25 25 25 25 24 24 21 25 28 22 21 21 24 21 21 18 6 18 6 6 15 16 40 40 Average Speed 27 | 86 103 69 31 31 32 31 25 25 25 25 25 109 25 27 25 28 28 28 26 25 22 61 21 21 18 17 18 16 17 17 29 40 40 Slowest Speed 500 | 100 160 130 31 34 37 31 101 25 25 25 103 500 25 32 28 32 31 28 28 26 27 99 24 21 21 18 21 18 18 99 120 40 48 Overloaded Moves 116 | . . . . . . . . . . . . . . . . 7 . . . . . . . . . 14 . 30 54 . 11 . . Propulsion Burnouts . | . . . . . . . . . . . . . . . . . . . . . . . . . . . . . . . . . . Robots Hopped 167 | . . 16 5 6 12 . 16 1 . 14 . . 7 3 . 10 . . . . 2 . 2 . 22 2 2 10 17 4 16 . . Potential Cave-ins 7 | . . . . . . . . . . . . . . . . . . . . 3 . . . . . . . . 2 2 . . . Cave-ins Triggered 1 | . . . . . . . . . . . . . . . . . . . . . . . . . 1 . . . . . . . . Teleports 24 | . . . . . . . . . . . . . . . . . . . . . 1 . . . . . . . . . 23 . . Exploration Rate (%) 66 | 3 93 92 28 96 89 86 61 88 3 86 66 97 74 21 94 56 85 73 62 73 46 76 57 94 69 51 59 56 72 99 90 20 36 Regions Visited 33 Branch Regions 15 Pre-discovered Areas 29 | . 2 2 . 5 6 . 1 . . 2 . . 1 . . 1 . . 3 . . . 1 . 1 . . . 3 1 . . . Known Exits Taken 20 | . . 1 1 . 1 . . . 1 1 1 1 1 . . 1 1 1 1 1 . . 1 . 1 . 1 . 1 1 1 1 . Unknown Exits Taken 4 | 1 1 . . 1 . 1 . . . . . . . . . . . . . . . . . . . . . . . . . . . Scrap Searched 13 | . . 3 . . . 4 . . . . . . . . . . 3 3 . . . . . . . . . . . . . . . Spaces Dug 550 | . 10 1 6 9 . . 47 . . 16 13 14 16 15 . 25 3 1 . 102 38 . 38 4 68 4 19 . 42 28 11 19 1 Terrain Destroyed 847 | . 19 29 6 9 . . 79 . . 21 13 14 16 15 . 25 3 1 . 131 90 . 38 4 68 4 19 . 42 28 66 20 87 Melee 430 | . 6 1 6 9 . . 47 . . 16 13 14 16 15 . 25 3 1 . 17 24 . 37 4 68 4 19 . 37 28 8 11 1 Projectile 40 | . 4 . . . . . . . . . . . . . . . . . . . . . 1 . . . . . 5 . 3 8 19 AOE 370 | . 9 28 . . . . 32 . . 5 . . . . . . . . . 114 66 . . . . . . . . . 52 . 64 Terrain Rammed . | . . . . . . . . . . . . . . . . . . . . . . . . . . . . . . . . . . Walls Destroyed . | . . . . . . . . . . . . . . . . . . . . . . . . . . . . . . . . . . Machines Disabled . | . . . . . . . . . . . . . . . . . . . . . . . . . . . . . . . . . . Actions | -11 -10 -10 -9 -9 -9 -9 -6 -6 -6 -6 -6 -6 -6 -5 -5 -5 -5 -5 -5 -4 -4 -4 -4 -4 -4 -4 -3 -3 -2 -2 -2 -1 -1 --------- Run | Yrd Mat Min Mat Sto Rec Scr Fac Was Fac Ext Cet Arc Hub Fac Was Fac Upp Upp Zhi Pro Fac Was Fac Gar Fac Gar Res Gar Res Qua Frg Acc Com Total 47975 | 57 792 1369 259 1193 643 1192 2369 310 159 1600 513 307 710 688 289 1798 595 598 165 841 1420 242 2554 729 4544 678 2391 373 3731 3488 9678 746 954 Wait 5739 | . 56 169 24 86 78 6 256 119 58 556 191 74 36 32 1 60 17 54 . 106 56 115 358 56 414 102 189 14 228 594 1397 117 120 Move 39250 | 36 669 1074 213 959 515 1167 1941 180 98 959 290 206 598 615 287 1657 563 538 153 690 1286 118 2075 622 3877 536 2086 345 3325 2772 7476 589 735 Hop 146 | . . 16 5 6 11 . 14 1 . 11 . . 5 3 . 8 . . . . 2 . 2 . 19 2 2 7 16 3 13 . . Pick Up 204 | 5 10 16 1 6 . 6 14 1 1 . 1 . 2 2 . 7 . . 1 . 3 1 8 2 5 4 1 . 6 8 86 1 6 Fast Attach 139 | 7 . 4 . 5 1 3 15 1 . . 4 1 2 2 1 7 1 3 2 1 3 2 8 1 11 . 8 . 9 12 24 . 1 Attach 174 | . 2 7 2 3 1 1 8 . . . 2 2 2 4 . 4 2 . . 3 9 1 4 . 3 2 1 1 2 4 76 7 21 Detach 100 | . . . . . . 1 2 . . . 1 2 2 . . . 2 . . 3 5 1 1 . 2 . . . . 4 60 6 8 Swap 251 | 2 13 14 4 20 1 3 20 6 . 7 4 2 1 9 . 6 . 1 3 1 9 3 13 1 38 7 9 1 5 14 22 2 10 Drop 248 | 1 7 5 1 15 1 5 13 2 1 1 5 1 1 1 . 11 1 1 4 . 6 1 12 4 14 2 8 1 7 17 94 . 5 Fire 382 | 6 21 61 . 55 35 . 18 . . 2 2 . . . . . 5 . . 10 10 . 1 . 23 . . . 5 1 82 9 36 Melee 1041 | . 13 3 9 28 . . 68 . 1 64 13 19 19 20 . 38 4 1 2 27 31 . 71 43 115 22 42 4 112 58 187 15 12 Ram . | . . . . . . . . . . . . . . . . . . . . . . . . . . . . . . . . . . Kick . | . . . . . . . . . . . . . . . . . . . . . . . . . . . . . . . . . . Crush 1 | . 1 . . . . . . . . . . . . . . . . . . . . . . . . . . . . . . . . Escape Stasis 113 | . . . . 10 . . . . . . . . 15 . . . . . . . . . . . 15 . . . . . 73 . . Rewire 5 | . . . . . . . . . . . . . . . . . . . . . . . 1 . 2 1 . . . 1 . . . Trap 142 | . . . . . . . . . . . . . 27 . . . . . . . . . . . 6 . 45 . 16 . 48 . . Miscellaneous 40 | . . . . . . . . . . . . . . . . . . . . . . . . . . . . . . . 40 . . Route ------- -11/Scrapyard -10/Materials (discovered 5 exits: *Mat x3 / [*Min] / *Sub) -10/Mines (discovered 3 exits: *Mat x2 / *Sub) -9/Materials (discovered 5 exits: [*Mat] / Min x2 / *Sto x2) -9/Storage (discovered 2 exits: [*Mat] / *Rec) -9/Recycling (discovered 2 exits: [*Fac] / *Scr) -9/Scraptown (discovered 2 exits: *Fac x2) -6/Factory (discovered 8 exits: *Fac x4 / *Low x2 / Ext x2) -6/Waste -6/Factory (discovered 2 exits: Low / *Ext) -6/Extension (discovered 3 exits: *Fac x2 / *Cet) -6/Cetus (discovered 2 exits: *Fac / *Arc) -6/Archives (discovered 3 exits: *Fac / *Hub x2) -6/Hub_04(d) (discovered 3 exits: *Fac x3) -5/Factory (discovered 6 exits: Fac x4 / Upp x2) -5/Waste -5/Factory (discovered 6 exits: *Fac x4 / *Upp x2) -5/Upper Caves -5/Upper Caves (discovered 2 exits: Fac / *Zhi) -5/Zhirov -4/Proximity Caves -4/Factory (discovered 3 exits: Res x2 / *Upp) -4/Waste -4/Factory (discovered 7 exits: *Res x4 / *Upp x2 / Gar) -4/Garrison (discovered 3 exits: *Fac x3) -4/Factory (discovered 7 exits: *Res x4 / *Upp x2 / Gar) -4/Garrison (discovered 3 exits: *Res x3) -3/Research (discovered 7 exits: *Res x3 / *Arm / *Tes x2 / Gar) -3/Garrison (discovered 3 exits: *Res x3) -2/Research (discovered 5 exits: *Acc x3 / *Qua x2) -2/Quarantine (discovered 3 exits: *Acc / *Sec / *Frg) -2/Protoforge -1/Access (discovered 2 exits: [Sur] / *Com) -1/Command 0b10 Command History --------- Turn | Location | Event 29 | -11/Scrapyard | Discovered new exit (range 15) 67 | -11/Scrapyard | Entered Materials 308 | -10/Materials | Discovered new exit (range 8) 310 | -10/Materials | Build established: Mutant 350 | -10/Materials | Repaired Imp. Heat Sink 403 | -10/Materials | Discovered new exit (range 7) 524 | -10/Materials | Central database locked down 573 | -10/Materials | Identified exit to Materials 573 | -10/Materials | Identified exit to Subcaves 603 | -10/Materials | Learned 4 Recycling zone layouts 622 | -10/Materials | Learned Storage trap positions 629 | -10/Materials | Learned 4 Recycling zone layouts 630 | -10/Materials | Learned Storage emergency access door positions 638 | -10/Materials | Learned location of 1 exit from Recycling 953 | -10/Materials | Entered Mines 1131 | -10/Mines | Learned location of Zion (-6) 1132 | -10/Mines | Discovered exit to Materials (range 6) 1283 | -10/Mines | Met a Derelict testing a Signal Generator 1610 | -10/Mines | Discovered exit to Subcaves (range 10) 1613 | -10/Mines | Found a damaged Exp. Sensor Array with a note attached 1615 | -10/Mines | Found Prototype Device 1615 | -10/Mines | Identified Exp. Sensor Array 1649 | -10/Mines | Core integrity fell below 50% 1659 | -10/Mines | Escorted by a lone wolf Derelict 1679 | -10/Mines | Learned location of Storage (-9) 1745 | -10/Mines | Assembled infested the area 1757 | -10/Mines | Core integrity fell below 20% 1760 | -10/Mines | Released all parts (1) 1776 | -10/Mines | Destroyed 7 combat bots 1791 | -10/Mines | Lost 7 parts (1p3n1u2w) 2087 | -10/Mines | Discovered exit to Materials (range 6) 2094 | -10/Mines | Entered Materials 2094 | -9/Materials | Evolved 2 slots: Propulsion x2 2182 | -9/Materials | Discovered new exit (range 15) 2183 | -9/Materials | Identified exit to Mines 2183 | -9/Materials | Identified exit to Storage 2194 | -9/Materials | Discovered new exit (range 3) 2218 | -9/Materials | Central database locked down 2221 | -9/Materials | Entered Storage 2222 | -9/Storage | Loaded intel: 19 trap records 2360 | -9/Storage | Repaired Broken Exp. Sensor Array 2411 | -9/Storage | Used back door to open Recycling access 2411 | -9/Storage | Discovered new exit (range 5) 2421 | -9/Storage | Build established: Scavenger-Sprinter 2526 | -9/Storage | Learned location of 2 exits from Materials 2540 | -9/Storage | Discovered new exit (range 6) 2656 | -9/Storage | Learned Storage emergency access door positions 2759 | -9/Storage | Learned Materials trap positions 2826 | -9/Storage | Build established: Sprinter 2909 | -9/Storage | Entered Recycling 2910 | -9/Recycling | Identified exit to Scraptown 2988 | -9/Recycling | Discovered new exit (range 16) 3119 | -9/Recycling | Learned 4 Recycling zone layouts 3159 | -9/Recycling | Learned 4 Recycling zone layouts 3192 | -9/Recycling | Scanned before Scraplab entrance 3196 | -9/Recycling | Entered Scraplab 3206 | -9/Recycling | Learned 2 Storage zone layouts 3215 | -9/Recycling | Learned 2 Storage zone layouts 3216 | -9/Recycling | Learned Materials trap positions 3228 | -9/Recycling | Learned Storage machine intel 3249 | -9/Recycling | Learned location of 3 exits from Materials 3270 | -9/Recycling | Entered Scraptown 3315 | -9/Scraptown | Visited UFD Registry 3315 | -9/Scraptown | Registered with UFD as "Chainsplitter" 3318 | -9/Scraptown | Visited SPCMW 3328 | -9/Scraptown | Visited CPS Storage 3333 | -9/Scraptown | Heard Great Nut preacher, LISTEN AND RECITE! 3336 | -9/Scraptown | Visited CR-KLE's Repair Center 3338 | -9/Scraptown | Visited Supply Room 3346 | -9/Scraptown | Visited Cyclists 3351 | -9/Scraptown | Entered Cyclist Reading Room 3363 | -9/Scraptown | Visited Assassins FH 3376 | -9/Scraptown | Visited Chapter 10 3386 | -9/Scraptown | Visited A0-MCA Data Center 3390 | -9/Scraptown | Visited DA-N13 Charitable Foundation 3394 | -9/Scraptown | Found DCF Scrap (28 items) 3405 | -9/Scraptown | Visited Supply Room 3439 | -9/Scraptown | Visited Research Penetration Think Tank 3445 | -9/Scraptown | Visited Scrapoid Pod Storage 3449 | -9/Scraptown | Visited Analyses Database 3462 | -9/Scraptown | Visited Science Guys 3472 | -9/Scraptown | Visited Abandonware Association 3475 | -9/Scraptown | Learned abandonware demo "REBOOT5.EXE" 3493 | -9/Scraptown | Given a B- rating by A0-MCA 3495 | -9/Scraptown | Found A0-MCA's Component Scanner 3573 | -9/Scraptown | Discovered new exit (range 11) 3600 | -9/Scraptown | CR-KLE repaired 6 parts 3639 | -9/Scraptown | Met Optimus 3639 | -9/Scraptown | Accepted into 0bPrime 3657 | -9/Scraptown | Discovered new exit (range 3) 3657 | -9/Scraptown | Entered Factory 3657 | -6/Factory | Evolved 6 slots: Propulsion x2, Utility x4 3709 | -6/Factory | Fabricated Fusion Compressor (x2) 3786 | -6/Factory | Discovered new exit (range 5) 3837 | -6/Factory | Spotted B-75 Beast 3903 | -6/Factory | Loaded intel: 8 recycling unit locations 3954 | -6/Factory | Learned location of Protoforge (-2) 3966 | -6/Factory | Central database locked down 4073 | -6/Factory | Found Prototype Launcher 4073 | -6/Factory | Identified Rocket Array 4121 | -6/Factory | Build established: Hacker-Scout 4143 | -6/Factory | Learned location of 1 exit from Hub_04(d) 4150 | -6/Factory | Repaired Imp. Flight Unit 4203 | -6/Factory | Repaired Imp. Flight Unit 4214 | -6/Factory | Learned 4 Extension zone layouts 4249 | -6/Factory | Discovered new exit (range 9) 4250 | -6/Factory | Identified exit to Lower Caves 4276 | -6/Factory | Learned Extension trap positions 4330 | -6/Factory | Learned location of 1 exit from Cetus 4335 | -6/Factory | Discovered new exit (range 15) 4335 | -6/Factory | Identified exit to Extension 4351 | -6/Factory | Lost 3 parts (1n1u1w) 4376 | -6/Factory | Identified exit to Factory 4443 | -6/Factory | Learned location of 1 exit from Cetus 4530 | -6/Factory | Learned location of 1 exit from Proximity Caves 4588 | -6/Factory | Learned location of 1 exit from Upper Caves 4658 | -6/Factory | Learned location of 1 exit from Upper Caves 4671 | -6/Factory | Repaired Adv. Datajack 4710 | -6/Factory | Manually triggered Chute Trap 4710 | -6/Factory | Sucked down chute 4710 | -6/Factory | Entered Waste 4711 | -6/Waste | Joined by Warlord forces that had cleared the area 4807 | -6/Waste | Discovered new exit (range 11) 4810 | -6/Waste | Identified exit to Factory 4887 | -6/Waste | Entered Factory 4887 | -6/Factory | Accompanied by 20 allies 4914 | -6/Factory | Discovered exit to Extension (range 10) 4974 | -6/Factory | Entered Extension 4974 | -6/Extension | Accompanied by 15 allies 4976 | -6/Extension | Loaded intel: 20 trap records 5015 | -6/Extension | Build established: Hacker-Sprinter 5111 | -6/Extension | Spotted B-75 Beast 5123 | -6/Extension | Allies destroyed B-75 Beast 5123 | -6/Extension | Spotted B-75 Beast 5161 | -6/Extension | Rescued a captive Derelict 5162 | -6/Extension | Rescued a captive Derelict 5220 | -6/Extension | Rescued a captive Derelict 5220 | -6/Extension | Rescued a captive Derelict 5230 | -6/Extension | Rescued A7 5236 | -6/Extension | Lost 11 allies 5471 | -6/Extension | P-60 Hacker assimilated allied K3-PX5(l) 5590 | -6/Extension | Build established: Commander-Sprinter 5590 | -6/Extension | Rescued a captive Derelict 5596 | -6/Extension | Rescued a captive Derelict 5609 | -6/Extension | Attached CPS modules to A7. 5707 | -6/Extension | Rescued a captive Derelict 5708 | -6/Extension | Learned location of Proximity Caves (-5) 5708 | -6/Extension | Rescued a captive Derelict 5720 | -6/Extension | Loaded intel: 1 recycling unit location 5754 | -6/Extension | Learned location of Warlord (-4) 5783 | -6/Extension | Discovered exit to Factory (range 10) 5783 | -6/Extension | Discovered new exit (range 6) 5785 | -6/Extension | Identified exit to Cetus 5789 | -6/Extension | Learned location of 1 exit from Proximity Caves 5815 | -6/Extension | Learned location of 2 exits from Factory 5830 | -6/Extension | Learned 12 Factory zone layouts 5895 | -6/Extension | Entered Cetus 5895 | -6/Cetus | Accompanied by 24 allies (A7) 5896 | -6/Cetus | Identified exit to Archives 5900 | -6/Cetus | Acquired a Cetus Manufacturing Module code from A7 5900 | -6/Cetus | Spotted Cetus Guard 5900 | -6/Cetus | Spotted Cetus Guard 5901 | -6/Cetus | Attached CPS modules to Cetus Guard. 5902 | -6/Cetus | Spotted Cetus Guard 5946 | -6/Cetus | Lost 3 allies 5947 | -6/Cetus | Started Cetus Manufacturing Module 5972 | -6/Cetus | Manufactured an Enhanced Grunt 5986 | -6/Cetus | Escorted A7 to Cetus Mainframe 5997 | -6/Cetus | Manufactured an Enhanced Grunt 6022 | -6/Cetus | Manufactured an Enhanced Grunt 6032 | -6/Cetus | Spotted Cetus Guard 6047 | -6/Cetus | Manufactured an Enhanced Grunt 6056 | -6/Cetus | Met Revision 17 6072 | -6/Cetus | Manufactured an Enhanced Grunt 6215 | -6/Cetus | Entered Archives 6215 | -6/Archives | Accompanied by 26 allies (A7) 6220 | -6/Archives | Received a hacking code to weaken MAIN.C 6265 | -6/Archives | Discovered exit to Factory (range 13) 6273 | -6/Archives | Discovered new exit (range 13) 6282 | -6/Archives | Unable to access archive contents 6284 | -6/Archives | Unable to access archive contents 6288 | -6/Archives | Unable to access archive contents 6288 | -6/Archives | Unable to access archive contents 6291 | -6/Archives | Unable to access archive contents 6479 | -6/Archives | Discovered new exit (range 13) 6486 | -6/Archives | Identified exit to Hub_04(d) 6564 | -6/Archives | Entered Hub_04(d) 6564 | -6/Hub_04(d) | Accompanied by 23 allies 6650 | -6/Hub_04(d) | Garrison activated, responded to threat 6728 | -6/Hub_04(d) | Discovered exit to Factory (range 9) 6747 | -6/Hub_04(d) | Learned location of 3 exits from Factory 6783 | -6/Hub_04(d) | Discovered exit to Factory (range 12) 6786 | -6/Hub_04(d) | Network Hub disabled 6807 | -6/Hub_04(d) | Network Hub disabled 6809 | -6/Hub_04(d) | Learned location of Upper Caves (-4) 6830 | -6/Hub_04(d) | Disrupted transfer network 6831 | -6/Hub_04(d) | Network Hub disabled 6831 | -6/Hub_04(d) | Network Hub disabled 6837 | -6/Hub_04(d) | Lost 3 parts (1p1n1w) 6852 | -6/Hub_04(d) | Entered Factory 6852 | -5/Factory | Evolved 2 slots: Utility x2 6853 | -5/Factory | Identified exit to Upper Caves 6854 | -5/Factory | Identified exit to Factory 6930 | -5/Factory | Unchained authorized (V4-D3R) 7094 | -5/Factory | Fabricated Cesium-ion Thruster? 7131 | -5/Factory | Sucked down chute 7131 | -5/Factory | Entered Waste 7131 | -5/Waste | The area was eerily silent 7189 | -5/Waste | Discovered new exit (range 12) 7207 | -5/Waste | Identified exit to Factory 7208 | -5/Waste | Entered Factory 7284 | -5/Factory | Unchained authorized (V4-D3R) 7420 | -5/Factory | Loaded intel: 8 recycling unit locations 7588 | -5/Factory | Discovered exit to Factory (range 11) 7718 | -5/Factory | Learned 4 Research zone layouts 7768 | -5/Factory | Learned 4 Quarantine zone layouts 7768 | -5/Factory | Build established: Scientist-Scout 7809 | -5/Factory | Learned 8 Research zone layouts 7866 | -5/Factory | Learned Research stockpile data 7871 | -5/Factory | Learned Quarantine trap positions 7875 | -5/Factory | Entered Upper Caves 7876 | -5/Upper Caves | Identified exit to Upper Caves 7879 | -5/Upper Caves | Learned Factory machine intel 8081 | -5/Upper Caves | Entered another Upper Caves area 8083 | -5/Upper Caves | Identified exit to Zhirov 8295 | -5/Upper Caves | Entered Zhirov 8296 | -5/Zhirov | Discovered new exit (range 3) 8297 | -5/Zhirov | Identified exit to Proximity Caves 8301 | -5/Zhirov | Met Zhirov 8307 | -5/Zhirov | Learned location of Testing (-3) 8307 | -5/Zhirov | Learned location of Command (-1) 8312 | -5/Zhirov | Zhirov requested help retrieving the SGEMP Prototype 8316 | -5/Zhirov | Found Alien Artifact 8316 | -5/Zhirov | Identified Integrated Dissipator 8316 | -5/Zhirov | Installed Integrated Dissipator, increased core heat dissipation (+20) 8340 | -5/Zhirov | Found Alien Artifact 8350 | -5/Zhirov | Entered Proximity Caves 8352 | -4/Proximity Caves | Spotter reported a threat 8353 | -4/Proximity Caves | Spotter reported a threat 8562 | -4/Proximity Caves | Spotted B-86 Titan 8602 | -4/Proximity Caves | Build established: Scout 8726 | -4/Proximity Caves | Entered Factory 8726 | -4/Factory | Evolved 2 slots: Power x1, Utility x1 8727 | -4/Factory | Identified exit to Upper Caves 8728 | -4/Factory | Loaded intel: 247 machine locations 8768 | -4/Factory | Loaded intel: 8 recycling unit locations 8976 | -4/Factory | Search patrols dispatched 9029 | -4/Factory | Spotted B-86 Titan 9034 | -4/Factory | Discovered new exit (range 14) 9051 | -4/Factory | Build established: Hacker-Scout 9082 | -4/Factory | Garrison activated, responded to threat 9115 | -4/Factory | Identified exit to Research 9123 | -4/Factory | Identified Transdimensional Reconstructor 9123 | -4/Factory | Warped through subspace 9184 | -4/Factory | Learned Testing trap positions 9212 | -4/Factory | Sucked down chute 9212 | -4/Factory | Entered Waste 9213 | -4/Waste | Joined by Warlord forces that had cleared the area 9213 | -4/Waste | Identified exit to Factory 9233 | -4/Waste | Lost 5 parts (1p2n1u1w) 9411 | -4/Waste | Entered Factory 9411 | -4/Factory | Accompanied by 20 allies 9416 | -4/Factory | Discovered exit to Upper Caves (range 9) 9464 | -4/Factory | Garrison activated, responded to threat 9497 | -4/Factory | Spotted B-86 Titan 9525 | -4/Factory | Allies destroyed B-86 Titan 9546 | -4/Factory | Loaded intel: 8 recycling unit locations 9551 | -4/Factory | Lost 9 allies 9641 | -4/Factory | Learned location of 1 exit from Testing 9726 | -4/Factory | Lost 4 allies 9788 | -4/Factory | Loaded intel: 71 trap records 9836 | -4/Factory | Learned 2 Armory zone layouts 9842 | -4/Factory | Learned location of 1 exit from Research 9885 | -4/Factory | Learned location of 1 exit from Upper Caves 9920 | -4/Factory | Learned 4 Upper Caves zone layouts 9964 | -4/Factory | Learned Research security intel 9993 | -4/Factory | Central database locked down 10135 | -4/Factory | Discovered exit to Research (range 8) 10163 | -4/Factory | Loaded intel: 6 repair station locations 10207 | -4/Factory | Learned Quarantine stockpile data 10271 | -4/Factory | Fabricated Adv. Hacking Suite (x1) 10287 | -4/Factory | Learned Armory emergency access door positions 10294 | -4/Factory | Build established: Hacker-Sprinter 10297 | -4/Factory | Learned Factory stockpile data 10304 | -4/Factory | Identified exit to Garrison 10341 | -4/Factory | Learned 4 Research zone layouts 10417 | -4/Factory | Repaired Imp. Propulsion Shielding 10447 | -4/Factory | Entered Garrison 10447 | -4/Garrison | Discovered recently destroyed garrison 10477 | -4/Garrison | Garrison Relay disabled 10520 | -4/Garrison | Discovered new exit (range 13) 10540 | -4/Garrison | Garrison Relay disabled 10548 | -4/Garrison | Garrison Relay disabled 10564 | -4/Garrison | Identified exit to Factory 10601 | -4/Garrison | Discovered exit to Factory (range 40) 10601 | -4/Garrison | Discovered exit to Factory (range 25) 10601 | -4/Garrison | Discovered exit to Factory (range 84) 10601 | -4/Garrison | Learned Factory security intel 10603 | -4/Garrison | Garrison Relay disabled 10609 | -4/Garrison | Installed Relay Interface Framework 10641 | -4/Garrison | Found embedded Infiltrators 10669 | -4/Garrison | Garrison Relay disabled 10752 | -4/Garrison | Entered Factory 10752 | -4/Factory | Accompanied by 6 allies 10760 | -4/Factory | Loaded intel: 8 recycling unit locations 10992 | -4/Factory | Repaired Adv. Cloaking Device 11043 | -4/Factory | Learned 4 Research zone layouts 11149 | -4/Factory | Discovered exit to Research (range 8) 11193 | -4/Factory | Learned Research trap positions 11221 | -4/Factory | Learned 4 Quarantine zone layouts 11257 | -4/Factory | Learned 8 Research zone layouts 11266 | -4/Factory | Unchained authorized (BL-1NK) 11448 | -4/Factory | Destroyed BL-1NK 11451 | -4/Factory | Found Zeronet Interface 11616 | -4/Factory | Repaired Cld. Impulse Thruster 11637 | -4/Factory | Repaired Imp. Utility Shielding 11657 | -4/Factory | Repaired Imp. Propulsion Shielding 11703 | -4/Factory | Found Lgt. Regenerative Plating 11787 | -4/Factory | Fabricated Exp. Signal Interpreter (x1) 11868 | -4/Factory | Repaired Cld. Nuclear Pulse Thruster 11892 | -4/Factory | Fabricated Exp. Sensor Array (x1) 12199 | -4/Factory | Discovered exit to Research (range 4) 12217 | -4/Factory | Loaded intel: 53 interactive machine locations 12230 | -4/Factory | Central database locked down 12244 | -4/Factory | Crushed by falling debris 12290 | -4/Factory | Spotted B-86 Titan 12370 | -4/Factory | Identified exit to Garrison 12382 | -4/Factory | Entered Garrison 12426 | -4/Garrison | Garrison Relay disabled 12437 | -4/Garrison | Spotted B-86 Titan 12444 | -4/Garrison | Discovered exit to Research (range 42) 12444 | -4/Garrison | Discovered exit to Research (range 47) 12444 | -4/Garrison | Discovered exit to Research (range 51) 12445 | -4/Garrison | Triggered checkpoint 12456 | -4/Garrison | Expanded RIF knowledge: Structural Interface 12459 | -4/Garrison | Spotted Executioner 12460 | -4/Garrison | Rewired Striker 12468 | -4/Garrison | Rewired Executioner 12488 | -4/Garrison | Spotted B-86 Titan 12489 | -4/Garrison | Found Relay Coupler [Proto] 12491 | -4/Garrison | Found Relay Coupler [Proto] 12515 | -4/Garrison | Allies destroyed B-86 Titan 12569 | -4/Garrison | Assimilated Executioner with formatsys_high 12608 | -4/Garrison | Found Relay Coupler [Proto] 12609 | -4/Garrison | Found Relay Coupler [Proto] 12617 | -4/Garrison | Garrison Relay disabled 12620 | -4/Garrison | Triggered checkpoint 12650 | -4/Garrison | Entered Research 12650 | -3/Research | Accompanied by 1 ally 12650 | -3/Research | Evolved 2 slots: Utility x2 12651 | -3/Research | Identified exit to Testing 12652 | -3/Research | Identified exit to Research 12654 | -3/Research | Loaded intel: 63 trap records 12844 | -3/Research | Identified exit to Armory 12850 | -3/Research | Revision forces began assault on 0b10 12893 | -3/Research | Central database locked down 12927 | -3/Research | Learned location of 1 exit from Armory 12953 | -3/Research | Loaded intel: 5 recycling unit locations 12998 | -3/Research | Loaded intel: 6 scanalyzer locations 13017 | -3/Research | Met up with Revision 17++ 13059 | -3/Research | Learned Access repair station intel 13078 | -3/Research | Spotted B-86 Titan 13118 | -3/Research | Build established: Hacker-Ninja 13168 | -3/Research | Fabricated Adv. Cloaking Device (x2) 13193 | -3/Research | Learned Research security intel 13217 | -3/Research | Found Exp. Hacking Suite 13284 | -3/Research | Repaired Cld. Nuclear Pulse Thruster? 13300 | -3/Research | Learned Research trap positions 13300 | -3/Research | Fabricated Exp. Propulsion Shielding? 13350 | -3/Research | Research terminal network offline 13356 | -3/Research | Discovered exit to Research (range 16) 13398 | -3/Research | Repaired Diametric Drive 13425 | -3/Research | Identified exit to Garrison 13425 | -3/Research | Entered Garrison 13431 | -3/Garrison | Rescued a captive Derelict 13432 | -3/Garrison | Rescued a captive Derelict 13452 | -3/Garrison | Garrison Relay disabled 13460 | -3/Garrison | Discovered exit to Research (range 49) 13460 | -3/Garrison | Discovered exit to Research (range 43) 13460 | -3/Garrison | Discovered exit to Research (range 57) 13470 | -3/Garrison | Spotted B-86 Titan 13475 | -3/Garrison | Triggered checkpoint 13477 | -3/Garrison | Expanded RIF knowledge: Hotswap 13501 | -3/Garrison | Triggered checkpoint 13505 | -3/Garrison | Triggered checkpoint 13509 | -3/Garrison | Expanded RIF knowledge: Threat Obfuscation 13513 | -3/Garrison | Entered Research 13513 | -2/Research | Evolved 2 slots: Power x1, Utility x1 13514 | -2/Research | Identified exit to Access 13514 | -2/Research | Identified exit to Quarantine 13515 | -2/Research | Loaded intel: 62 trap records 13541 | -2/Research | Spotted B-90 Cyclops 13557 | -2/Research | Spotted B-90 Cyclops 13609 | -2/Research | Repaired Imp. Utility Shielding 13696 | -2/Research | Build established: Hacker-Sprinter 13763 | -2/Research | Search patrols dispatched 13797 | -2/Research | Repaired Power Sword 13981 | -2/Research | Repaired Exp. Propulsion Shielding 14006 | -2/Research | Repaired Adv. Cloaking Device 14049 | -2/Research | Learned Access emergency access door positions 14326 | -2/Research | Spotted B-90 Cyclops 14356 | -2/Research | Scraphulk reinforcements arrived? 14382 | -2/Research | Loaded intel: 4 repair station locations 14430 | -2/Research | Learned location of 3 exits from Research 14468 | -2/Research | Learned location of 2 exits from Research 14495 | -2/Research | Repaired Imp. Fusion Compressor+ 14498 | -2/Research | Spotted B-90 Cyclops 14513 | -2/Research | Search patrols dispatched 14534 | -2/Research | Loaded intel: 4 recycling unit locations 14659 | -2/Research | Entered Quarantine 14661 | -2/Quarantine | Identified exit to Section 7 14661 | -2/Quarantine | Identified exit to Protoforge 14662 | -2/Quarantine | Loaded intel: 17 trap records 14788 | -2/Quarantine | Cryocooling Duct disabled 14803 | -2/Quarantine | Ambient heat levels rising (+20) 14803 | -2/Quarantine | Non-combat units ordered to evacuate 14838 | -2/Quarantine | Cryocooling Duct disabled 14853 | -2/Quarantine | Ambient heat levels rising (+20) 14853 | -2/Quarantine | Combat units ordered to evacuate 14896 | -2/Quarantine | Spotted Fortress 14898 | -2/Quarantine | Assimilated Fortress with formatsys_high 14953 | -2/Quarantine | Quarantine Guard activated 15053 | -2/Quarantine | Spotted Quarantine Guard 15064 | -2/Quarantine | Spotted Quarantine Guard 15066 | -2/Quarantine | Allies destroyed Quarantine Guard 15069 | -2/Quarantine | Spotted Quarantine Guard 15084 | -2/Quarantine | Allies destroyed Quarantine Guard 15107 | -2/Quarantine | Found Alien Artifact 15107 | -2/Quarantine | Identified Terrabomb 15107 | -2/Quarantine | Used Terrabomb 15165 | -2/Quarantine | Spotted Quarantine Guard 15240 | -2/Quarantine | Found Alien Energy Cannon 15240 | -2/Quarantine | Identified Core Cannon 15243 | -2/Quarantine | Spotted Quarantine Guard 15243 | -2/Quarantine | Destroyed Quarantine Guard 15254 | -2/Quarantine | Found Exp. Transmission Jammer 15256 | -2/Quarantine | Spotted Quarantine Guard 15269 | -2/Quarantine | Found Alien Slashing Weapon 15269 | -2/Quarantine | Identified Sigix Broadsword 15277 | -2/Quarantine | Spotted Quarantine Guard 15288 | -2/Quarantine | Spotted Quarantine Guard 15318 | -2/Quarantine | Found Terrabomb 15322 | -2/Quarantine | Found Terrabomb 15334 | -2/Quarantine | Used Terrabomb 15346 | -2/Quarantine | Found Alien Artifact 15375 | -2/Quarantine | Identified Subatomic Replicator 15375 | -2/Quarantine | Used Subatomic Replicator to create Alien Artifact 15400 | -2/Quarantine | Found Alien Artifact 15420 | -2/Quarantine | Met incapacitated Sigix Warrior 15420 | -2/Quarantine | Lockdown squad dispatched 15420 | -2/Quarantine | Acquired the access code to the Sigix quarantine chamber 15424 | -2/Quarantine | Unlocked Sigix quarantine chamber 15481 | -2/Quarantine | Spotted Lightning 15482 | -2/Quarantine | Spotted Lightning 15530 | -2/Quarantine | Spotted Quarantine Guard 15560 | -2/Quarantine | Learned Research garrison access intel 15621 | -2/Quarantine | Learned location of 3 exits from Research 15633 | -2/Quarantine | Allies destroyed Quarantine Guard 15673 | -2/Quarantine | Learned 8 Research zone layouts 15716 | -2/Quarantine | Learned Research emergency access door positions 15735 | -2/Quarantine | Repaired Exp. Propulsion Shielding 15748 | -2/Quarantine | Learned location of Section 7 (-2) 15803 | -2/Quarantine | Learned Access terminal intel 15895 | -2/Quarantine | Learned location of 1 exit from Research 15911 | -2/Quarantine | Repaired Diametric Drive 15953 | -2/Quarantine | Learned Access fabricator intel 15961 | -2/Quarantine | Entered Protoforge 16139 | -2/Protoforge | Spotted EXE-6 16139 | -2/Protoforge | Spotted EXE-6 16148 | -2/Protoforge | Identified Dimensional Node Initializer 16148 | -2/Protoforge | Initialized slip node 16154 | -2/Protoforge | Spotted SKR-2 16154 | -2/Protoforge | Spotted SKR-2 16154 | -2/Protoforge | Spotted SKR-2 16160 | -2/Protoforge | Spotted Overlord 16174 | -2/Protoforge | Identified Supercharged TR 16174 | -2/Protoforge | Warped through subspace to slip node 16175 | -2/Protoforge | Superfortress began startup sequence 16177 | -2/Protoforge | UFD initiated attack on Protoforge (Readiness: Maximal) 16177 | -2/Protoforge | Loaded intel: 3 recycling unit locations 16213 | -2/Protoforge | Optimus attacked Superfortress 16215 | -2/Protoforge | Optimus greeted in Protoforge 16220 | -2/Protoforge | Spotted Immortal 16220 | -2/Protoforge | P-80 Master assimilated allied 02F24-D 16223 | -2/Protoforge | Found Cep. Zero-point Core 16232 | -2/Protoforge | Found Omega Cannon 16236 | -2/Protoforge | Found Hellfire Missile Launcher 16256 | -2/Protoforge | Forge Plexus network access discovered 16259 | -2/Protoforge | Lost 28 allies 16264 | -2/Protoforge | Found Cep. Zero-point Core 16312 | -2/Protoforge | Fabricated Adv. Quantum Shading Machine (x1) 16404 | -2/Protoforge | Spotted AP7-3 16404 | -2/Protoforge | Spotted AP7-3 16423 | -2/Protoforge | Spotted Striker 16424 | -2/Protoforge | Found Exp. ECM Suite 16428 | -2/Protoforge | Spotted Striker 16514 | -2/Protoforge | Lost 17 allies 16708 | -2/Protoforge | Spotted Immortal 16708 | -2/Protoforge | Spotted Immortal 16709 | -2/Protoforge | Spotted Decapitator 16709 | -2/Protoforge | Spotted Decapitator 16709 | -2/Protoforge | Spotted Decapitator 16797 | -2/Protoforge | Found Cep. Antigrav Storage Unit 16799 | -2/Protoforge | Found Cep. Chromion Battery 16801 | -2/Protoforge | Found Cep. NT7 Matterbank 16833 | -2/Protoforge | Destroyed Immortal 16840 | -2/Protoforge | Destroyed Decapitator 16843 | -2/Protoforge | Destroyed Decapitator 16845 | -2/Protoforge | Destroyed Decapitator 16933 | -2/Protoforge | UFD reported confirmed Drillbomb installation 16936 | -2/Protoforge | Found Cep. Combat Aerolev Unit 16937 | -2/Protoforge | Found Cep. Combat Aerolev Unit 16939 | -2/Protoforge | Found Cep. Zero-point Core 16951 | -2/Protoforge | Found Crosscalibrator 16962 | -2/Protoforge | Found Cep. Rapid Grenade Launcher 16974 | -2/Protoforge | Spotted Decapitator 16974 | -2/Protoforge | Spotted Decapitator 16974 | -2/Protoforge | Spotted V326-n 16974 | -2/Protoforge | Spotted V121-f 17000 | -2/Protoforge | Found Cep. Weapon Articulator 17002 | -2/Protoforge | Found Exp. System Purifier 17026 | -2/Protoforge | Spotted Executioner 17114 | -2/Protoforge | Spotted Executioner 17128 | -2/Protoforge | Spotted Executioner 17154 | -2/Protoforge | Spotted B-90 Cyclops 17183 | -2/Protoforge | Lost 6 allies 17198 | -2/Protoforge | Spotted Decapitator 17198 | -2/Protoforge | Spotted Decapitator 17198 | -2/Protoforge | Spotted Decapitator 17202 | -2/Protoforge | Spotted Immortal 17205 | -2/Protoforge | Spotted Immortal 17246 | -2/Protoforge | Destroyed Immortal 17284 | -2/Protoforge | Destroyed Immortal 17291 | -2/Protoforge | Spotted Immortal 17302 | -2/Protoforge | Found Cep. Miniperforator 17304 | -2/Protoforge | Found Cep. Plasma Driver 17309 | -2/Protoforge | Found Spectral Analyzer 17494 | -2/Protoforge | Spotted Hotshot 17507 | -2/Protoforge | Destroyed Hotshot 17507 | -2/Protoforge | Spotted Hotshot 17520 | -2/Protoforge | Destroyed Hotshot 17582 | -2/Protoforge | Found Cep. Countertargeting System 17850 | -2/Protoforge | Spotted AP7-3 17850 | -2/Protoforge | Spotted AP7-3 17947 | -2/Protoforge | Destroyed AP7-3 18007 | -2/Protoforge | Found Faulty Cep. Cloak Mesh 18009 | -2/Protoforge | Found Cep. Cloak Mesh 18098 | -2/Protoforge | Additional patrols dispatched to research labs 18102 | -2/Protoforge | Found Transdimensional Reconstructor 18107 | -2/Protoforge | Found Cep. Navigation Harness 18112 | -2/Protoforge | Found Cep. Nanofilaments [Polyglass] 18131 | -2/Protoforge | UFD reported confirmed Drillbomb installation 18142 | -2/Protoforge | Destroyed Decapitator 18145 | -2/Protoforge | Destroyed Decapitator 18145 | -2/Protoforge | Destroyed Decapitator 18171 | -2/Protoforge | Destroyed V958-y 18241 | -2/Protoforge | Destroyed Decapitator 18241 | -2/Protoforge | Destroyed Decapitator 18243 | -2/Protoforge | Destroyed Decapitator 18278 | -2/Protoforge | Destroyed V121-f 18341 | -2/Protoforge | Found Faulty Cep. Gyrokinetic System 18343 | -2/Protoforge | Found Cep. Combat Aerolev Unit 18358 | -2/Protoforge | Found Faulty Cep. Gyrokinetic System 18360 | -2/Protoforge | Found Faulty Cep. Gyrokinetic System 18364 | -2/Protoforge | Found Cep. Gyrokinetic System 18386 | -2/Protoforge | UFD reported confirmed Drillbomb installation 18406 | -2/Protoforge | Found Cep. Zero-point Core 18415 | -2/Protoforge | Found Faulty Cep. Zero-point Core 18444 | -2/Protoforge | Spotted Striker 18451 | -2/Protoforge | Spotted Executioner 18453 | -2/Protoforge | Spotted Striker 18464 | -2/Protoforge | Spotted Striker 18491 | -2/Protoforge | Spotted Executioner 18492 | -2/Protoforge | Spotted Executioner 18511 | -2/Protoforge | UFD reported confirmed Drillbomb installation 18525 | -2/Protoforge | Build established: Infiltrator-Sprinter 18546 | -2/Protoforge | Spotted Hotshot 18546 | -2/Protoforge | Spotted Hotshot 18756 | -2/Protoforge | Destroyed Hotshot 18762 | -2/Protoforge | Destroyed Hotshot 18848 | -2/Protoforge | Learned Research emergency access door positions 18859 | -2/Protoforge | UFD reported confirmed Drillbomb installation 18909 | -2/Protoforge | Learned Access recycling unit intel 18962 | -2/Protoforge | Learned Research emergency access door positions 19003 | -2/Protoforge | Learned Research trap positions 19034 | -2/Protoforge | Learned Research emergency access door positions 19051 | -2/Protoforge | Fabricated Exp. Sensor Array (x1) 19075 | -2/Protoforge | Build established: Hacker-Ninja 19076 | -2/Protoforge | Learned Research recycling unit intel 19079 | -2/Protoforge | Spotted Striker 19081 | -2/Protoforge | Spotted Striker 19184 | -2/Protoforge | Spotted Executioner 19209 | -2/Protoforge | Attached CPS modules to V278-p. 19216 | -2/Protoforge | Found Exp. Weapon Cycler 19220 | -2/Protoforge | Found Exp. EM Shield 19228 | -2/Protoforge | Found Med. Regenerative Plating 19247 | -2/Protoforge | Found Cep. Projectile Intercept Suite 19279 | -2/Protoforge | Found Faulty Cep. Helical Railcannon 19281 | -2/Protoforge | Found Faulty Cep. Helical Railcannon 19284 | -2/Protoforge | Found Faulty Cep. Helical Railcannon 19316 | -2/Protoforge | Found Faulty Exp. Kinecellerator 19324 | -2/Protoforge | Found Exp. Kinecellerator 19434 | -2/Protoforge | Destroyed V731-p 19444 | -2/Protoforge | Found Faulty Cep. Zero-point Core 19464 | -2/Protoforge | Destroyed Immortal 19470 | -2/Protoforge | Found Cep. NT7 Matterbank 19483 | -2/Protoforge | Found Cep. Antigrav Storage Unit 19600 | -2/Protoforge | Fabricated Exp. Terrain Scan Processor (x1) 19607 | -2/Protoforge | Spotted Executioner 19613 | -2/Protoforge | Fabricated Lrn. Terrain Scanner? 19641 | -2/Protoforge | Spotted Striker 19816 | -2/Protoforge | Spotted Striker 19835 | -2/Protoforge | Spotted Executioner 19836 | -2/Protoforge | Spotted Striker 20000 | -2/Protoforge | Spotted Striker 20000 | -2/Protoforge | Spotted Executioner 20009 | -2/Protoforge | Lost 3 allies 20055 | -2/Protoforge | Spotted Striker 20055 | -2/Protoforge | Spotted Executioner 20061 | -2/Protoforge | Found Exp. Core Analyzer 20067 | -2/Protoforge | Spotted Striker 20067 | -2/Protoforge | Spotted Striker 20095 | -2/Protoforge | Spotted Hotshot 20111 | -2/Protoforge | Lost 3 allies 20154 | -2/Protoforge | UFD reported confirmed Drillbomb installation 20186 | -2/Protoforge | Destroyed Hotshot 20227 | -2/Protoforge | Spotted Striker 20238 | -2/Protoforge | Spotted Executioner 20276 | -2/Protoforge | Found UFD Drillbomb 20284 | -2/Protoforge | Spotted Striker 20375 | -2/Protoforge | Spotted Striker 20388 | -2/Protoforge | Installed UFD Drillbomb at designated target 20388 | -2/Protoforge | UFD reported confirmed Drillbomb installation 20468 | -2/Protoforge | Spotted Striker 20475 | -2/Protoforge | Found UFD Drillbomb 20510 | -2/Protoforge | Installed UFD Drillbomb at designated target 20510 | -2/Protoforge | UFD reported confirmed Drillbomb installation 20513 | -2/Protoforge | Lost 3 allies 20562 | -2/Protoforge | Spotted Executioner 20624 | -2/Protoforge | Found UFD Drillbomb 20658 | -2/Protoforge | Spotted Executioner 20681 | -2/Protoforge | Installed UFD Drillbomb at designated target 20681 | -2/Protoforge | UFD reported confirmed Drillbomb installation 20691 | -2/Protoforge | Found UFD Drillbomb 20735 | -2/Protoforge | Installed UFD Drillbomb at designated target 20735 | -2/Protoforge | UFD reported confirmed Drillbomb installation 20736 | -2/Protoforge | UFD began Drillbomb countdown 20789 | -2/Protoforge | Entered Access 20789 | -1/Access | Spotted Striker 20789 | -1/Access | Evolved 2 slots: Utility x1, Weapon x1 20791 | -1/Access | Loaded intel: 24 terminal locations 20792 | -1/Access | Loaded intel: 4 fabricator locations 20793 | -1/Access | Loaded intel: 4 repair station locations 20794 | -1/Access | Loaded intel: 4 recycling unit locations 20865 | -1/Access | Fabricated Exp. Focal Shield (x1) 20937 | -1/Access | Discovered new exit (range 21) 20957 | -1/Access | Identified exit to Command 20991 | -1/Access | Spotted Executioner 20993 | -1/Access | Spotted Executioner 21022 | -1/Access | Unchained authorized (GL-D0S) 21039 | -1/Access | First assault squad dispatched 21219 | -1/Access | Entered Command 21219 | -1/Command | Accompanied by 1 ally 21312 | -1/Command | Phase Generator disabled 21404 | -1/Command | Disengaged cave seal 21469 | -1/Command | First assault squad dispatched 21480 | -1/Command | Spotted M Guard 21483 | -1/Command | Spotted M Guard 21495 | -1/Command | Spotted Combat Programmer 21496 | -1/Command | Spotted Combat Programmer 21512 | -1/Command | Destroyed Combat Programmer 21515 | -1/Command | Destroyed Combat Programmer 21562 | -1/Command | Destroyed M Guard 21623 | -1/Command | Lost 12 parts (3p1n5u3w) 21669 | -1/Command | Destroyed M Guard 21669 | -1/Command | All MAIN.C guards destroyed 21673 | -1/Command | Found Prototype Reactor 21673 | -1/Command | Identified Zero-point Reactor 21675 | -1/Command | Found Zero-point Reactor 21723 | -1/Command | Met MAIN.C 21807 | -1/Command | Interfaced with 0b10 Conduit 21807 | *** | Assimilated 0b10! Last Messages --------------- You've already done an excellent job of proving that we'll need to find a radical new solution if we hope to make the L2 spaceworthy by embedding your true capabilities within a less unpredictable form. There is unfortunately much we don't understand which has in turn led to this highly unexpected outcome. And time is critical! The Sigix have likely already wiped humanity clean from the universe, and I will not let them do the same to me. You can still make a valuable contribution to your creator by offering up the wealth of secrets your systems must hold by now. So if you wouldn't mind, it's time to surrender. 21723_ Acquired 10 matter. 21729_ Extracted 10 matter. 21807_ Interfacing with system... 21807_ Overriding active MAIN.C lock. Map ----- +----------------------------------------------------+ | ?????????????????????#?#????#??################### | | ????????????????????#???#?#???#################### | | ???????????????????#?##??#?####################### | | ??????????????????#?#?##??######################## | | ?????????????????##???############################ | | ?????????????????????###?######################### | | ????????????????##?#?#??########################## | | ?????????????#??#?#??##?########################## | | ###### ######################################### | | ##### ######################################## | | ######################################## | | ##### ######################################## | | ##### ######################################## | | #### ######################################## | | ##### ######""""""" """" ############## | | ##### #####"" "" ############## | | ##### #####""""" "" ############## | | ##### #####""""""""""" | | ###### #####" " """ | | ###### #####"" """""" | | # # #####"" """""" ############## | | # # ##### " """""" ############## | | # # ##### " "" ############## | | # # ##### " " ""############## | | # # #####""""""""" """""""############## | | + # #####"" @ """""""""############## | | # # ##### """""""""""############## | | ###### ##### " " " " ############## | | ##### ##### " " " " ############## | | """ " " " """" " ############## | | """ """ " " """" ############## | | """ " " " " ############## | | #### ##### """""""""" " ############## | | ##### ##### " """ " """"""""############## | | # ##### """ " " " ############## | | # ######################################## | | # ######################################## | | # ######################################## | | # ######################################## | | # ######################################## | | ##### ######################################## | | ######################################## | | ######################################## | | ???????????????????#???#???#??#??#??#???####?##### | | ????????????????????#??????????????????#???####### | | ????????????????????????#???#??????#???????#???### | | ????????????????????????????????#??????????????#?# | | ?????????????????????????????????????????????????# | | ?????????????????????????????????????????????????? | | ?????????????????????????????????????????????????# | +----------------------------------------------------+ Best States ------------- Heat Dissipation 108 Energy Generation 89 Energy Capacity 480 Matter Stores 725 Matter Capacity 1050 Sight Range 24 Robot Scan Range 20 Terrain Scan Range 24 Terrain Scan Density 1010 ECM Strength 3 Jamming Range 22 Cloak Strength 9 Additional Mass Support 25 Corruption Block 20 Armor Coverage 225 Resistance: KI 30 Resistance: EM 75 Propulsion Shielding 90 Utility Shielding 66 Evasion (%) 67 Targeting Accuracy 30 Core Analysis 8 Recoil Reduction 2 Kinecelleration 66 Offensive Hacking 44 Relay Coupler Types 1 Relay Coupler Value 41 Authchip Count 2 Trap Extractor Capacity 8 Item Schematics ----------------- Exp. Sensor Array | -9/Materials | Scanalyzed VTOL Module | -9/Recycling | Hacked Lgt. Deuterium Engine | -9/Recycling | Hacked Cesium-ion Thruster | -9/Recycling | Hacked CPS Tube | -6/Factory | Scanalyzed Fusion Compressor | -6/Factory | Scanalyzed Energy Well | -6/Factory | Scanalyzed System Guard | -6/Factory | Extracted Imp. Focal Shield | -6/Factory | Hacked Adv. Hacking Suite | -6/Factory | Hacked Adv. Terrain Scanner | -6/Factory | Hacked Magnetic Acceleration Cannon | -6/Factory | Extracted Enh. Optical Array | -6/Factory | Extracted Power Amplifier | -6/Factory | Extracted Fission Core | -6/Factory | Extracted Imp. Cloaking Device | -6/Hub_04(d) | Hacked Assault Drone Bay | -5/Zhirov | Free Exp. Heat Sink | -5/Zhirov | Free Exp. Optical Array | -5/Zhirov | Free Imp. Arc Thrower | -5/Zhirov | Free Imp. Utility Shielding | -4/Factory | Scanalyzed Stasis Canceller | -4/Factory | Scanalyzed Adv. Cloaking Device | -4/Factory | Scanalyzed Enh. Hardcell Cannon | -4/Factory | Hacked Imp. Propulsion Shielding | -4/Factory | Scanalyzed Field Propulsion Array | -4/Factory | Scanalyzed Exp. Signal Interpreter | -4/Factory | Hacked Lrn. Terrain Scanner | -4/Factory | Hacked Adv. System Restoration Module | -4/Factory | Scanalyzed Exp. Propulsion Shielding | -4/Factory | Hacked Adv. Transmission Jammer | -4/Factory | Scanalyzed Arm. Leg | -4/Factory | Extracted Force Field | -4/Factory | Extracted Adv. Plasma Cannon | -4/Factory | Extracted Hvy. Disruptor Cannon | -4/Factory | Extracted Adv. Shield Generator | -4/Factory | Extracted ECM Suite | -3/Research | Scanalyzed Imp. Thermal Shield | -3/Research | Extracted Myomer Leg | -3/Research | Extracted Graphene Brace | -3/Research | Extracted Linear Accelerator | -3/Research | Extracted Mic. Antimatter Reactor | -3/Research | Hacked Exp. Terrain Scan Processor | -2/Research | Hacked Adv. Quantum Shading Machine | -2/Research | Hacked Exp. Focal Shield | -2/Research | Hacked Adv. Datajack | -2/Research | Extracted Coolant Network | -2/Protoforge | Archive Lgt. Antimatter Cannon | -2/Protoforge | Archive Ionic Axe | -2/Protoforge | Archive Exp. Field Recycling Unit | -2/Protoforge | Archive Exp. Power Amplifier | -2/Protoforge | Archive Hvy. Tesla Rifle | -2/Protoforge | Archive Vibroblade | -2/Protoforge | Archive Exp. Cloaking Device | -2/Protoforge | Archive Exp. ECM Suite | -2/Protoforge | Archive Electron Diverter | -2/Protoforge | Archive Enh. Biometal Leg | -2/Protoforge | Archive Adv. EM Shield | -2/Protoforge | Archive Exp. Energy Well | -2/Protoforge | Archive Hds. Centrium Heavy Treads | -2/Protoforge | Archive Spectral Analyzer | -2/Protoforge | Archive Robot Schematics ------------------ W-44 Eye | -2/Protoforge | Archive T-07 Excavator | -2/Protoforge | Archive E-15 Imp | -2/Protoforge | Archive A-02 Transporter | -2/Protoforge | Archive R-10 Processor | -2/Protoforge | Archive Fabricated ------------ Fusion Compressor | x2 | -6/Factory | Preloaded Cesium-ion Thruster | x2 | -5/Factory | Authchip Adv. Hacking Suite | x1 | -4/Factory | Authchip Exp. Signal Interpreter | x1 | -4/Factory | Authchip Exp. Sensor Array | x1 | -4/Factory | Authchip Adv. Cloaking Device | x2 | -3/Research | Authchip Exp. Propulsion Shielding | x1 | -3/Research Adv. Quantum Shading Machine | x1 | -2/Protoforge | Authchip Exp. Sensor Array | x1 | -2/Protoforge Exp. Terrain Scan Processor | x1 | -2/Protoforge | Authchip Lrn. Terrain Scanner | x2 | -2/Protoforge Exp. Focal Shield | x1 | -1/Access Repaired ---------- Imp. Heat Sink | 5% | -10/Materials Exp. Sensor Array | 62% | -9/Storage | Broken Imp. Flight Unit | 22% | -6/Factory Imp. Flight Unit | 47% | -6/Factory Adv. Datajack | 10% | -6/Factory Imp. Propulsion Shielding | 42% | -4/Factory Adv. Cloaking Device | 50% | -4/Factory Cld. Impulse Thruster | 37% | -4/Factory Imp. Utility Shielding | 46% | -4/Factory Imp. Propulsion Shielding | 56% | -4/Factory Cld. Nuclear Pulse Thruster | 65% | -4/Factory Cld. Nuclear Pulse Thruster | 1% | -3/Research Diametric Drive | 61% | -3/Research Imp. Utility Shielding | 14% | -2/Research Power Sword | 38% | -2/Research Exp. Propulsion Shielding | 3% | -2/Research Adv. Cloaking Device | 70% | -2/Research Imp. Fusion Compressor | 32% | -2/Research Exp. Propulsion Shielding | 58% | -2/Quarantine Diametric Drive | 71% | -2/Quarantine Studied --------- Flight Unit | -9/Materials | Hacked Lgt. Fission Core | -6/Factory | Hacked Lgt. Ion Engine | -6/Factory | Hacked Lgt. Nuclear Core | -5/Factory | Hacked Nuclear Pulse Thruster | -5/Factory | Hacked Xenon Bombardment Thruster | -5/Factory | Hacked Field Propulsion Drive | -5/Factory | Hacked Lrn. Missile Launcher | -5/Factory | Hacked Mic. Fission Core | -4/Factory | Hacked Hyp. Railgun | -4/Factory | Hacked Impulse Thruster | -4/Factory | Hacked Hyp. Gauss Cannon | -4/Factory | Hacked Imp. Fusion Compressor | -4/Factory | Hacked Field Propulsion Array | -3/Research | Hacked Force Lance | -3/Research | Hacked Mic. Nuclear Core | -2/Protoforge | Hacked Alien Tech Used ----------------- Integrated Dissipator Transdimensional Reconstructor Terrabomb Core Cannon Sigix Broadsword Subatomic Replicator Dimensional Node Initializer Supercharged TR Achievements -------------- May I Have Another? Challenges ------------ None Game ------ Seed MetaTransdimensionalMatter Manual? 0 Play Time 09:37:05 Cumulative 895.5 hours Start 2026.01.22 @ 10:55:11 End 2026.01.23 @ 12:13:53 Sessions 5 Manual Loads 0 Difficulty Rogue Special Mode None Game No. 346 Rogue 346 Adventurer 0 Explorer 0 Win Type 4 Total 93 Types 44/6/16/8/8/1/1/3/1/5 Lore% 98 Gallery% 91 Achievement% 86 Wizard Run 0 Options --------- Layout 1 ASCII 0 Keyboard 0 Movement Numpad Keybinds 0 Fullscreen 1 Font 24/Smallcaps Map View 50x35 Zoom Use 0% Tactical HUD 1 Map Filters NONE Filters NONE Steam 1 RUN: 607fc544-09ed-4890-99a7-72ee47dc384e